Cogmind - Beta 9.3 @@@ ROGUE MODE // 2019.12.25 @ 19:46:05 // Winter2019/RPGLIKE Player: cptwinky Result: Escaped! Performance ------------- Evolutions (9) 4500 Regions Visited (36) 7200 Robots Destroyed (683) 3415 Value Destroyed (32961) 32961 Prototype IDs (61) 1220 Alien Tech Used (0) 0 Bonus (27457) 27457 TOTAL SCORE: 76753 Bonus ------- Triggered High Security 1000 High Alert Combat Kills 11923 Follower Combat Kills 6294 Entered Garrisons 2000 Used RIF Installer 5000 Aligned with FarCom 300 Met Data Miner 300 Win 3000 Friendly Fire -2360 Cogmind --------- Core Integrity 220/1450 Matter 476/800 Energy 267/270 System Corruption 10% Temperature Cool (4) Movement Flying (35) Location To Epsilon Eridani Parts ------- > --- POWER (2) -------- Cold Fusion Reactor Micro Fission Core > --- PROPULSION (1) --- Cooled Impulse Thruster > --- UTILITY (9) ------ Advanced Reaction Control System Advanced Phase Shifter Relay Coupler [Swarmer] (78) Relay Coupler [Swarmer] (54) Relay Coupler [Grunt] (7) Relay Coupler [Grunt] (72) Relay Coupler [Grunt] (62) Relay Coupler [Grunt] (62) Relay Coupler [Sentry] (60) > --- WEAPON (5) ------- Hypervelocity Railgun Hypervelocity Railgun Hypervelocity Railgun Multirail Multirail > --- INVENTORY (7) ---- Protomatter-91 Protomatter-96 Advanced Terrain Scanner Relay Coupler [ARC] (32) Gamma Bomb Array Advanced Remote Datajack Enhanced Force Lance Peak State ------------ > --- POWER ------------ Cold Fusion Reactor Micro Fission Core > --- PROPULSION ------- Cooled Impulse Thruster > --- UTILITY ---------- Advanced Reaction Control System Advanced Phase Shifter Relay Coupler [Swarmer] Relay Coupler [Swarmer] Relay Coupler [Grunt] Relay Coupler [Grunt] Relay Coupler [Grunt] Relay Coupler [Grunt] Relay Coupler [Sentry] > --- WEAPON ----------- Hypervelocity Railgun Hypervelocity Railgun Hypervelocity Railgun Multirail Multirail > --- INVENTORY -------- Protomatter Advanced Terrain Scanner Improved Cloaking Device Relay Coupler [ARC] Gamma Bomb Array Advanced Remote Datajack Enhanced Force Lance [Rating: 115] Favorites ----------- Power Cold Fusion Reactor Engine Cooled Ion Engine Power Core Micro Fission Core Reactor Cold Fusion Reactor Propulsion Cooled Impulse Thruster Leg Flexi-carbon Leg Flight Unit Cooled Impulse Thruster Utility Relay Coupler [Grunt] Device Advanced Terrain Scanner Processor Improved Core Analyzer Hackware Relay Coupler [Grunt] Weapon Hypervelocity Railgun Energy Gun Small Laser Ballistic Gun Hypervelocity Railgun Launcher Gamma Bomb Array Special Weapon Advanced Remote Datajack Slashing Weapon Great Axe Piercing Weapon Heavy Pick Special Melee Weapon Improved Datajack Build | -11 -10 -10 -9 -9 -9 -8 -8 -8 -8 -8 -7 -7 -7 -7 -6 -6 -6 -6 -6 -5 -5 -5 -5 -5 -5 -4 -4 -4 -4 -3 -3 -3 -3 -2 -2 -1 ------- Run | Scr Mat Min Mat Min Exi Min Mat Gar Mat Gar Fac Low Low Dat Pro Fac Gar Fac Gar Fac Was Fac Gar Fac Gar Fac Gar Arm Lab Res Gar Res Gar Res Gar Acc Slots Evolved 13 | 1 . . 4 . . . 3 1 . . 1 . . . 1 . . . . 1 . . . . . . 1 . . . . . . . . . Power 1 | . . . . . . . . . . . . . . . 1 . . . . . . . . . . . . . . . . . . . . . Propulsion . | . . . . . . . . . . . . . . . . . . . . . . . . . . . . . . . . . . . . . Utility 8 | . . . 2 . . . 3 1 . . . . . . . . . . . 1 . . . . . . 1 . . . . . . . . . Weapon 4 | 1 . . 2 . . . . . . . 1 . . . . . . . . . . . . . . . . . . . . . . . . . Parts Attached 170 | 4 2 . 11 . 1 . 5 9 1 6 13 6 . 1 2 9 12 9 2 10 1 12 4 1 3 . 4 14 . 2 2 2 2 1 . 19 Power 10 | 1 . . 1 . . . . . . . 1 1 . . 1 1 1 2 . . . 1 . . . . . . . . . . . . . . Engine 3 | 1 . . 1 . . . . . . . 1 . . . . . . . . . . . . . . . . . . . . . . . . . Core 4 | . . . . . . . . . . . . 1 . . . . 1 2 . . . . . . . . . . . . . . . . . . Reactor 3 | . . . . . . . . . . . . . . . 1 1 . . . . . 1 . . . . . . . . . . . . . . Propulsion 2 | . . . . . . . . . . . . . . . . . . 1 . . . . . . . . . . . . . . . . . 1 Treads . | . . . . . . . . . . . . . . . . . . . . . . . . . . . . . . . . . . . . . Leg 1 | . . . . . . . . . . . . . . . . . . 1 . . . . . . . . . . . . . . . . . . Wheel . | . . . . . . . . . . . . . . . . . . . . . . . . . . . . . . . . . . . . . Hover . | . . . . . . . . . . . . . . . . . . . . . . . . . . . . . . . . . . . . . Flight 1 | . . . . . . . . . . . . . . . . . . . . . . . . . . . . . . . . . . . . 1 Utility 46 | 1 . . 2 . 1 . 3 2 1 . 2 2 . 1 1 1 3 4 . 2 . 2 1 . 2 . 4 . . 1 . . . . . 10 Device 23 | 1 . . 1 . 1 . 1 . . . 2 2 . 1 1 . 2 3 . . . 2 . . 1 . . . . 1 . . . . . 4 Storage . | . . . . . . . . . . . . . . . . . . . . . . . . . . . . . . . . . . . . . Processor 3 | . . . 1 . . . 1 . . . . . . . . . . . . 1 . . . . . . . . . . . . . . . . Hackware 20 | . . . . . . . 1 2 1 . . . . . . 1 1 1 . 1 . . 1 . 1 . 4 . . . . . . . . 6 Protection . | . . . . . . . . . . . . . . . . . . . . . . . . . . . . . . . . . . . . . Artifact . | . . . . . . . . . . . . . . . . . . . . . . . . . . . . . . . . . . . . . Weapon 112 | 2 2 . 8 . . . 2 7 . 6 10 3 . . . 7 8 2 2 8 1 9 3 1 1 . . 14 . 1 2 2 2 1 . 8 Energy Gun 5 | 2 . . 1 . . . 1 . . . . . . . . . . . . 1 . . . . . . . . . . . . . . . . Energy Cannon . | . . . . . . . . . . . . . . . . . . . . . . . . . . . . . . . . . . . . . Ballistic Gun 60 | . 2 . 6 . . . 1 3 . 2 8 2 . . . 5 4 1 . 4 . 9 1 . . . . 5 . . 1 . 1 . . 5 Ballistic Cannon . | . . . . . . . . . . . . . . . . . . . . . . . . . . . . . . . . . . . . . Launcher 18 | . . . . . . . . 3 . 2 2 1 . . . 1 2 . . 1 . . 1 . 1 . . 1 . . 1 1 . . . 1 Special Weapon 6 | . . . . . . . . . . . . . . . . 1 1 . . . 1 . . . . . . . . . . . 1 . . 2 Impact Weapon . | . . . . . . . . . . . . . . . . . . . . . . . . . . . . . . . . . . . . . Slashing Weapon 3 | . . . 1 . . . . 1 . 1 . . . . . . . . . . . . . . . . . . . . . . . . . . Piercing Weapon 12 | . . . . . . . . . . . . . . . . . . 1 1 1 . . 1 1 . . . 4 . 1 . 1 . 1 . . Special Melee Weapon 8 | . . . . . . . . . . 1 . . . . . . 1 . 1 1 . . . . . . . 4 . . . . . . . . Unidentified Prototypes 8 | . . . 2 . . . 1 . . . 1 . . . . 2 . . . 1 . . . . . . . . . . . . . . . 1 Parts Lost 1 | . . . . . . . . . . . . . . . . . . . . . . . 1 . . . . . . . . . . . . . Power . | . . . . . . . . . . . . . . . . . . . . . . . . . . . . . . . . . . . . . Propulsion . | . . . . . . . . . . . . . . . . . . . . . . . . . . . . . . . . . . . . . Utility 1 | . . . . . . . . . . . . . . . . . . . . . . . 1 . . . . . . . . . . . . . Weapon . | . . . . . . . . . . . . . . . . . . . . . . . . . . . . . . . . . . . . . Highest Loss Streak 1 | . . . . . . . . . . . . . . . . . . . . . . . 1 . . . . . . . . . . . . . Average Slot Usage (%) 92 | . 80 80 81 88 88 88 89 91 92 92 91 91 92 92 88 92 89 91 93 92 88 92 90 93 93 93 93 93 94 94 94 94 93 94 94 98 Engine 2 | . 20 20 14 11 11 11 8 7 7 7 7 3 . . . . . . . . . . . . . . . . . . . . . . . . Core 3 | . . . . . . . . . . . . 3 7 7 6 6 6 6 6 6 6 6 6 6 6 6 5 5 5 5 5 5 5 5 5 5 Reactor 3 | . . . . . . . . . . . . . . . . 6 6 6 6 6 6 6 6 6 6 6 5 5 5 5 5 5 5 5 5 5 Device 22 | . 20 20 25 22 25 33 28 32 30 30 37 35 35 35 33 33 26 35 40 38 37 37 34 31 29 25 21 11 11 11 11 11 11 11 11 7 Processor 1 | . . . 3 11 7 . 8 6 . . . . . . . . . . . 2 6 6 6 6 6 6 4 . . . . . . . . . Hackware 23 | . . . . . . . 8 11 23 23 14 14 14 14 13 13 19 9 6 6 6 6 6 12 13 18 24 41 41 41 41 41 41 41 41 44 Ballistic Gun 21 | . 20 40 29 33 33 33 26 23 23 20 23 20 21 21 20 22 15 25 26 25 15 24 22 25 19 18 17 16 17 17 22 17 16 17 17 23 Launcher 2 | . . . . . . . . . . 2 . 7 7 7 6 1 3 . . . . . 2 . 4 6 5 5 5 5 5 5 5 1 . . Slashing Weapon 2 | . . . 7 11 11 11 8 7 7 5 7 7 7 7 6 6 . . . . . . . . . . . . . . . . . . . . Piercing Weapon 2 | . . . . . . . . . . . . . . . . . . 3 4 3 6 6 6 6 6 6 5 3 5 5 . 5 1 3 5 2 Naked Turns . | . . . . . . . . . . . . . . . . . . . . . . . . . . . . . . . . . . . . . Heaviest Build 60 | 6 7 7 21 21 23 23 24 26 26 29 35 38 33 33 45 50 46 48 46 48 48 53 56 51 55 51 51 55 55 60 60 60 60 57 53 60 Greatest Support 76 | 8 8 8 23 23 23 23 33 33 33 33 33 33 33 33 48 48 48 48 48 48 48 48 48 48 53 53 53 58 58 63 63 63 63 63 63 76 Greatest Overweight (x) 1 | . . . . . . . . . . . 1 1 . . . 1 . . . . . 1 1 1 1 . . . . 1 . . . . . . Average Overweight (x) . | . . . . . . . . . . . . . . . . . . . . . . . 1 1 . . . . . . . . . . . . Largest Inventory Capacity 7 | 1 1 1 2 2 2 2 3 3 5 5 5 5 5 5 5 6 6 6 6 6 6 6 6 6 6 6 6 7 7 7 7 7 7 7 7 7 Average Capacity 5 | 1 1 1 1 2 2 2 2 3 3 5 5 5 5 5 5 5 6 6 6 6 6 6 6 6 6 6 6 6 7 7 7 7 7 7 7 7 Most Carried 7 | . 1 1 2 2 2 2 3 3 3 5 5 5 5 5 5 6 6 6 6 6 6 6 6 6 6 6 6 6 6 7 7 7 7 7 7 7 Average Carried 5 | . . . 1 2 2 2 2 3 2 3 4 4 4 5 4 5 5 5 6 5 5 5 5 6 6 6 6 5 6 6 7 7 5 5 6 6 Final Capacity 7 | 1 1 1 2 2 2 2 3 3 5 5 5 5 5 5 5 6 6 6 6 6 6 6 6 6 6 6 6 7 7 7 7 7 7 7 7 7 Final Carried 7 | . 1 1 2 2 2 2 3 3 3 5 5 4 5 5 5 6 6 6 6 6 6 5 6 6 6 6 6 6 6 7 7 7 5 7 7 7 Class Distribution -------------------- 21% | Hacker-Scout 21% | Botlord-Ninja 12% | Botlord-Gunner 8% | Hacker-Ninja 7% | Mutant 5% | Hacker-Gunner 5% | Botlord-Scout 4% | Hacker-Assassin 3% | Scout Dominant Class ---------------- Mutant | -10/Materials Mutant | -10/Mines Mutant | -9/Materials Scout | -9/Mines Scout | -9/Exiles Scout | -8/Mines Hacker-Scout | -8/Materials Hacker-Scout | -8/Garrison Hacker-Scout | -8/Materials Hacker-Scout | -8/Garrison Hacker-Scout | -7/Factory Hacker-Gunner | -7/Lower Caves Hacker-Gunner | -7/Lower Caves Hacker-Gunner | -7/Data Miner Hacker-Gunner | -6/Proximity Caves Hacker-Scout | -6/Factory Hacker-Scout | -6/Garrison Hacker-Ninja | -6/Factory Hacker-Ninja | -6/Garrison Hacker-Ninja | -5/Factory Hacker-Ninja | -5/Waste Hacker-Assassin | -5/Factory Hacker-Assassin | -5/Garrison Bothacker-Assassin | -5/Factory Bothacker-Assassin | -5/Garrison Bothacker-Ninja | -4/Factory Botlord-Ninja | -4/Garrison Botlord-Ninja | -4/Armory Botlord-Ninja | -4/Lab Botlord-Ninja | -3/Research Botlord-Scout | -3/Garrison Botlord-Ninja | -3/Research Botlord-Scout | -3/Garrison Botlord-Ninja | -2/Research Botlord-Ninja | -2/Garrison Botlord-Gunner | -1/Access Resources | -11 -10 -10 -9 -9 -9 -8 -8 -8 -8 -8 -7 -7 -7 -7 -6 -6 -6 -6 -6 -5 -5 -5 -5 -5 -5 -4 -4 -4 -4 -3 -3 -3 -3 -2 -2 -1 ----------- Run | Scr Mat Min Mat Min Exi Min Mat Gar Mat Gar Fac Low Low Dat Pro Fac Gar Fac Gar Fac Was Fac Gar Fac Gar Fac Gar Arm Lab Res Gar Res Gar Res Gar Acc Matter Collected 21036 | 240 89 48 687 11 56 60 639 240 499 167 208 196 83 . 223 327 406 218 138 380 . . 445 . 650 91 829 2547 . 883 509 426 695 216 1082 7748 Remotely 2330 | . . . . . . . 96 240 499 167 208 196 83 . 133 327 381 . . . . . . . . . . . . . . . . . . . Salvage Created 34663 | 27 250 157 1174 11 . 54 1062 354 1484 608 93 272 213 . 925 902 856 256 454 448 . . 512 466 988 198 1073 3111 . 1356 951 763 858 492 1434 12861 Parts 1630 | 2 27 6 75 3 . 15 65 30 85 34 7 15 8 . 27 32 31 12 20 22 8 4 36 16 47 13 43 190 . 93 48 50 43 28 79 416 Haulers Intercepted 19 | . 1 . 3 . . . 3 . 6 . . . . . . . . . . 1 . . . . . . . . . . . . . . . 5 Recyclers Shooed 13 | . . . . . . . . . . . . . . . . . . . . . . . . 2 . . . . . 2 . 5 . . . 4 Parts Field Recycled . | . . . . . . . . . . . . . . . . . . . . . . . . . . . . . . . . . . . . . Retrieved Matter . | . . . . . . . . . . . . . . . . . . . . . . . . . . . . . . . . . . . . . Parts Self-Destructed 20 | . . . . . . . . . . . . 4 . . 16 . . . . . . . . . . . . . . . . . . . . . Prevented 29 | . . . . . . . . . . . . 7 9 . 13 . . . . . . . . . . . . . . . . . . . . . Kills | -11 -10 -10 -9 -9 -9 -8 -8 -8 -8 -8 -7 -7 -7 -7 -6 -6 -6 -6 -6 -5 -5 -5 -5 -5 -5 -4 -4 -4 -4 -3 -3 -3 -3 -2 -2 -1 ------- Run | Scr Mat Min Mat Min Exi Min Mat Gar Mat Gar Fac Low Low Dat Pro Fac Gar Fac Gar Fac Was Fac Gar Fac Gar Fac Gar Arm Lab Res Gar Res Gar Res Gar Acc Combat Hostiles Destroyed 532 | . 14 5 24 . . 7 21 15 21 16 2 9 5 . 14 17 13 4 9 12 2 1 20 4 18 6 15 54 . 17 11 8 8 4 20 136 Melee 13 | . . . . . . . . . 1 . . . 1 . . . . . 1 . . . 6 . . . . . . . 1 . . . . 3 Guns 422 | . 14 5 24 . . 7 21 8 19 4 2 3 1 . 7 7 . 4 8 9 . 1 3 4 12 1 13 52 . 15 5 8 8 4 20 133 AOE 79 | . . . . . . . . 7 1 12 . 4 3 . 6 6 6 . . 3 . . 11 . 6 5 2 2 . 2 3 . . . . . Classes Destroyed 28 | 1 5 . 4 . . 1 . . 1 . . 2 . . 1 2 1 . . . 1 . . . . . 1 4 . . 1 . . . . 3 Worker 42 | . 1 . 2 . . . . . 1 . . . . . . 4 . . . . . . . . . . . . . 2 . . . 1 . 31 Builder 28 | . . . 2 . . . 4 . 2 . . . . . . 1 . . . . . . . 1 . . . . . . . 1 . . . 17 Tunneler 5 | 1 . . . 1 . . . . 1 . . . . . . . . . . . . . . . . . . . . . . . . . . 2 Hauler 19 | . 1 . 3 . . . 3 . 6 . . . . . . . . . . 1 . . . . . . . . . . . . . . . 5 Recycler 14 | . . . 1 . . . 1 . 2 . . . . . . . . . . . . . . 1 . . . . . 1 . . . . . 8 Carrier 3 | . . . . . . . . . . . . . . . . . . . . . . . . . . . . 2 . . . . . . . 1 Minesweeper 1 | . . . . . . . . . . . . . . . 1 . . . . . . . . . . . . . . . . . . . . . Mechanic 4 | . . . . . . . . . . . . . . . . . . . . . . . . . . . . 1 . . . . . . . 3 Operator 4 | . . . . . . . . . . . . 1 . . . . . . . . . . . . . . . 1 . . . . . 1 . 1 Drone 1 | . . . . . . . . . . . . . . . . . . . . . . . . . . . . . . . 1 . . . . . Watcher 20 | . 1 . 2 . . . 2 1 4 . . . . . . . 1 . . 1 . . . . . 1 . . . . . 1 . 1 . 5 Swarmer 116 | . 9 3 3 . . 6 4 12 3 7 . 7 1 . 3 . 4 . . 4 . . 18 . 5 5 . 10 . 4 1 . . . . 7 Saboteur 16 | . . . . . . . . . . . . . . . . . . . . . . . . . . . 2 6 . . 2 . . . . 6 Grunt 183 | . 5 2 14 . . . 16 1 14 6 . . 3 . 10 10 6 . 4 5 . . 2 3 11 . 10 8 . 5 2 3 3 3 10 27 Brawler 19 | . . . . . . . . . 1 1 . . . . 1 1 1 . . 1 . . . . . . 1 1 . . . 1 . . 3 7 Duelist 20 | . . . 1 . . . . . . . . . . . . . . . . . . . . . . . . 2 . . . 1 . . 5 11 Protector 14 | . . . . . . . . . . . . . . . . 1 . . . . . . . . . . . 2 . . . . . . . 11 Sentry 51 | . . . 6 . . . 1 2 2 2 2 . 1 . . 2 . 4 4 2 . . . 1 2 1 . 6 . 4 . 1 4 . 1 3 Demolisher 4 | . . . . . . . . . . . . . . . . . . . . . . . . . . . . 3 . . . . . . . 1 Specialist 11 | . . . . . . . . . . . . . . . . . . . . . . . . . . . . 10 . . . . . . . 1 Hunter 32 | . . . . . . 1 . . 1 . . 1 . . . 1 1 . . . . 1 . . . . 2 5 . 1 3 1 . . 1 13 Programmer 52 | . . . . . . . . . . . . . . . . 2 . . 1 . . . . . . . . 3 . 4 1 1 . 1 . 39 Behemoth 3 | . . . . . . . . . . . . . . . . . 1 . . . . . . . . . . . . . 1 . 1 . . . Compactor 2 | . . . . . . . . . . . . . . . . . . . . . 2 . . . . . . . . . . . . . . . Investigator 1 | . . . . . . . . . . . . . . . . . . . . . . . . . . . . . . . . . . . . 1 Striker 12 | . . . . . . . . . . . . . . . . . . . . . . . . . . . . . . . . . . . . 12 Executioner 5 | . . . . . . . . . . . . . . . . . . . . . . . . . . . . . . . . . . . . 5 Thief 1 | . . . . . . . . . . . . 1 . . . . . . . . . . . . . . . . . . . . . . . . Best Kill Streak 27 | 1 4 5 10 2 . 4 6 5 9 10 1 4 2 . 4 7 4 1 5 5 1 1 6 2 4 5 3 6 . 4 4 5 6 2 4 27 Combat Bots Only 20 | . 4 3 7 . . 4 5 5 5 10 1 4 2 . 4 6 4 1 5 4 1 1 6 2 4 5 3 6 . 4 4 4 6 2 4 20 Max Kills in Single Turn 6 | 1 1 1 2 1 . 2 2 2 2 6 1 2 1 . 2 6 3 1 2 3 1 1 3 2 2 3 2 3 . 2 1 2 1 1 1 4 Gunslinging 2 | . . . . . . 1 1 . . . . 1 . . . . . . . 1 . . . . 1 . 1 2 . 1 . . . . . 1 Exploded 6 | . . . . . . . . 2 1 6 . 2 1 . 2 5 3 . . 3 . . 3 . 2 3 1 2 . 1 1 . . . . . Melee 1 | . . . . . . . . . 1 . . . 1 . . . . . 1 . . . 1 . . . . . . . 1 . . . . 1 Uniques/NPCs Destroyed . | . . . . . . . . . . . . . . . . . . . . . . . . . . . . . . . . . . . . . Combat | -11 -10 -10 -9 -9 -9 -8 -8 -8 -8 -8 -7 -7 -7 -7 -6 -6 -6 -6 -6 -5 -5 -5 -5 -5 -5 -4 -4 -4 -4 -3 -3 -3 -3 -2 -2 -1 -------- Run | Scr Mat Min Mat Min Exi Min Mat Gar Mat Gar Fac Low Low Dat Pro Fac Gar Fac Gar Fac Was Fac Gar Fac Gar Fac Gar Arm Lab Res Gar Res Gar Res Gar Acc Damage Taken 20672 | . 459 251 498 . . 103 465 131 726 257 67 366 163 165 317 633 500 66 247 359 . 283 1118 257 333 10 837 1651 . 1522 1245 706 424 346 1006 5161 Core 16758 | . 371 206 402 . . 87 381 106 582 207 52 296 131 139 261 494 398 49 193 295 . 230 879 207 262 8 664 1381 . 1216 999 567 347 286 826 4236 Absorbed by Shields 583 | . . . . . . . . . . 60 . . . . . . 5 . . . . . . . 57 . 303 99 . . . . 10 . 49 . Redirected to Core 13564 | . 266 137 327 . . 52 279 83 461 166 46 250 107 98 191 457 346 44 170 230 . 190 811 173 217 8 592 954 . 1092 877 507 285 208 623 3317 Core Remaining (%) 84 | 100 . 84 . . . 100 . . . 100 . . . . 97 . . . 89 . . . . . 89 . . . 67 . . . 92 . 100 15 Volleys Fired 1290 | 1 48 12 84 2 . 10 67 20 52 16 8 22 11 . 26 32 28 8 13 19 7 5 14 13 28 5 55 140 . 44 36 26 39 27 71 301 Largest 5 | 2 2 2 3 3 . 3 3 3 3 3 4 3 3 . 3 4 1 4 4 4 4 4 3 4 3 3 3 3 . 3 4 3 3 3 3 5 Hottest 210 | 80 80 40 69 69 . 69 69 69 69 69 100 75 75 . 75 86 43 86 86 96 96 138 105 138 105 105 105 120 . 120 160 120 120 120 120 210 Shots Fired 3662 | 2 96 24 170 6 . 30 189 41 154 34 29 30 25 . 60 86 28 32 52 73 13 20 25 44 76 7 153 405 . 125 61 75 73 71 195 1158 Gun 3455 | 2 96 24 170 6 . 30 189 32 154 28 29 12 21 . 51 78 2 32 52 72 7 20 16 44 72 3 147 399 . 121 38 74 51 66 186 1131 Cannon . | . . . . . . . . . . . . . . . . . . . . . . . . . . . . . . . . . . . . . Launcher 135 | . . . . . . . . 9 . 6 . 18 4 . 9 6 17 . . 1 . . 9 . 4 4 6 6 . 4 23 1 4 1 . 3 Special 72 | . . . . . . . . . . . . . . . . 2 9 . . . 6 . . . . . . . . . . . 18 4 9 24 Kinetic 3400 | . 43 24 170 6 . 30 189 32 154 28 29 12 21 . 51 78 2 32 52 72 7 20 16 44 72 3 147 399 . 121 38 74 51 66 186 1131 Thermal 55 | 2 53 . . . . . . . . . . . . . . . . . . . . . . . . . . . . . . . . . . . Explosive . | . . . . . . . . . . . . . . . . . . . . . . . . . . . . . . . . . . . . . Electromagnetic 135 | . . . . . . . . 9 . 6 . 18 4 . 9 6 17 . . 1 . . 9 . 4 4 6 6 . 4 23 1 4 1 . 3 Robot Hit Streak 58 | 1 18 5 22 12 . 8 33 14 36 22 9 10 12 . 16 27 8 16 22 21 9 19 21 11 11 13 58 43 . 18 24 27 27 20 29 33 Robot Miss Streak 5 | . 4 1 3 1 . 1 4 4 2 1 2 4 2 . 2 2 1 1 2 1 1 . 1 1 4 . 1 4 . 1 2 1 3 1 2 5 Penetration Max 4 | . . . . . . . . . . . . . . . . . . . . . . . . 1 1 1 1 3 . 2 . 3 . . 2 4 Secondary Targets 87 | . 1 2 3 . . 3 4 1 1 . . 1 . . . 1 . . 1 2 . . . . 2 . 1 5 . 5 . 3 1 1 4 45 Max Gunslinging Chain 2 | . 1 1 1 . . 1 1 1 1 . . 1 . . . 1 . . 1 1 . . . . 1 . 1 2 . 1 . 1 1 1 1 2 Shots Hit Robots 2851 | 1 65 16 121 4 . 18 148 24 146 26 19 18 25 1 44 71 15 23 44 52 11 18 26 32 48 2 123 331 . 110 38 69 60 56 176 870 Core Hits 1604 | 1 26 7 49 1 . 9 57 19 54 24 8 15 8 . 29 35 16 8 17 29 . 4 29 22 41 10 53 157 . 50 33 44 21 17 83 628 Critical Hits 776 | . . 2 1 . . . 1 . 3 . . . . . . 3 . . . . . 4 6 11 22 2 48 142 . 55 6 26 16 17 56 355 Critical Kills 256 | . . 1 1 . . . . . 1 . . . . . . 2 . . . . . . 3 5 10 2 12 45 . 16 3 7 6 6 16 120 Critical Parts Destroyed 435 | . . 1 . . . . 1 . 2 . . . . . . 1 . . . . . 4 2 5 11 . 21 83 . 37 3 19 2 10 33 200 Melee Attacks 308 | . . . . . . . 4 4 25 3 22 . 9 11 6 23 3 7 8 18 . 2 25 2 8 3 7 25 . 15 5 10 . 2 1 60 Impact . | . . . . . . . . . . . . . . . . . . . . . . . . . . . . . . . . . . . . . Slashing 106 | . . . . . . . 4 4 25 2 22 . 9 11 6 23 . . . . . . . . . . . . . . . . . . . . Piercing 178 | . . . . . . . . . . . . . . . . . . 6 4 13 . 2 25 2 8 3 7 15 . 15 5 10 . 2 1 60 Sneak Attacks 36 | . . . . . . . . 1 6 . . . . 1 1 3 . 1 2 . . . . . . . . 9 . 1 . . . . . 11 Combat Hostiles 3 | . . . . . . . . . . . . . . . . . . . 2 . . . . . . . . . . . . . . . . 1 Follow-up Attacks . | . . . . . . . . . . . . . . . . . . . . . . . . . . . . . . . . . . . . . Damage Inflicted 57201 | 10 693 212 1733 42 . 217 2296 627 3346 1030 343 852 742 120 1445 3550 1042 513 1086 1896 154 283 1124 378 931 386 1490 3235 . 1421 1293 1015 537 487 1476 21196 Guns 41690 | 10 693 212 1733 42 . 217 2296 294 2045 296 343 97 264 . 677 1555 . 513 983 1138 154 283 115 378 414 34 927 2933 . 929 174 690 321 407 1476 19047 Cannons . | . . . . . . . . . . . . . . . . . . . . . . . . . . . . . . . . . . . . . Explosions 10125 | . . . . . . . . 201 . 734 . 755 265 . 602 1529 1042 . . 758 . . 695 . 517 352 563 302 . 358 1060 105 216 41 . 30 Melee 5386 | . . . . . . . . 132 1301 . . . 213 120 166 466 . . 103 . . . 314 . . . . . . 134 59 220 . 39 . 2119 Ramming . | . . . . . . . . . . . . . . . . . . . . . . . . . . . . . . . . . . . . . Kinetic 41252 | . 265 212 1733 42 . 217 2296 294 2045 296 343 97 264 . 677 1555 . 513 983 1138 154 283 115 378 414 34 927 2933 . 929 174 690 321 407 1476 19047 Thermal 2219 | 10 428 . . . . . . . . 131 . 54 . . . . 200 . . 682 . . . . 170 46 184 98 . . 216 . . . . . Explosive 852 | . . . . . . . . . . . . . . . . 795 . . . . . . . . . . . 57 . . . . . . . . Electromagnetic 7492 | . . . . . . . . 201 . 603 . 701 265 . 602 734 842 . . 76 . . 695 . 347 306 379 147 . 358 844 105 216 41 . 30 Impact . | . . . . . . . . . . . . . . . . . . . . . . . . . . . . . . . . . . . . . Slashing 2398 | . . . . . . . . 132 1301 . . . 213 120 166 466 . . . . . . . . . . . . . . . . . . . . Piercing 2988 | . . . . . . . . . . . . . . . . . . . 103 . . . 314 . . . . . . 134 59 220 . 39 . 2119 Highest Corruption 13 | . . . . . . . . 1 1 1 . 3 3 3 3 . . . 1 . 5 5 5 5 5 . . 2 2 8 9 13 13 . . 10 Average Corruption 4 | . . . . . . . . 1 1 1 . 2 3 3 3 . . . 1 . 5 5 5 5 5 . . 1 2 5 8 11 13 . . 5 Corruption Purged . | . . . . . . . . . . . . . . . . . . . . . . . . . . . . . . . . . . . . . Effects 347 | . . . . . . . . . 3 1 . 7 6 2 8 . . . 1 . 3 4 15 12 21 . . 17 . 19 16 22 33 . . 157 Message Errors 42 | . . . . . . . . . 1 1 . 3 2 . 4 . . . . . 1 . . 2 4 . . 5 . 4 1 . 2 . . 12 Matter Fused 53 | . . . . . . . . . . . . . . . . . . . . . . 3 4 1 4 . . . . 2 5 6 5 . . 23 Heat Flow Errors 19 | . . . . . . . . . . . . 1 1 1 . . . . . . . . 2 . 2 . . 1 . 1 2 . 1 . . 7 Energy Discharges 20 | . . . . . . . . . 1 . . . 1 . 1 . . . 1 . . 1 2 . . . . 1 . 1 2 1 2 . . 6 Parts Rejected 7 | . . . . . . . . . . . . . . . . . . . . . . . 1 1 . . . . . . 1 1 1 . . 2 Data Loss (minor) 29 | . . . . . . . . . . . . 1 . 1 1 . . . . . 1 . 1 2 2 . . 3 . 3 1 1 2 . . 10 Data Loss (major) 2 | . . . . . . . . . . . . . . . . . . . . . . . 2 . . . . . . . . . . . . . Misfires 9 | . . . . . . . . . . . . . . . . . . . . . 1 . 1 1 . . . . . 2 . 1 1 . . 2 Misdirections 7 | . . . . . . . . . . . . . . . . . . . . . . . . . . . . . . . . . 7 . . . Targeting Errors 138 | . . . . . . . . . 1 . . 2 2 . 2 . . . . . . . 2 5 9 . . 5 . 5 2 8 11 . . 84 Weapon Failures 21 | . . . . . . . . . . . . . . . . . . . . . . . . . . . . 2 . 1 2 4 1 . . 11 Overload Shots . | . . . . . . . . . . . . . . . . . . . . . . . . . . . . . . . . . . . . . Overflow Damage 1036 | . . . . . . . . 67 200 . . 35 43 . 84 219 89 . . 82 . . 20 . 1 5 2 . . . . 27 . . . 162 Projectiles . | . . . . . . . . . . . . . . . . . . . . . . . . . . . . . . . . . . . . . Explosions 316 | . . . . . . . . . . . . 35 4 . . 93 89 . . 82 . . 5 . 1 5 2 . . . . . . . . . Melee 720 | . . . . . . . . 67 200 . . . 39 . 84 126 . . . . . . 15 . . . . . . . . 27 . . . 162 Knockbacks . | . . . . . . . . . . . . . . . . . . . . . . . . . . . . . . . . . . . . . Impact . | . . . . . . . . . . . . . . . . . . . . . . . . . . . . . . . . . . . . . Kinetic . | . . . . . . . . . . . . . . . . . . . . . . . . . . . . . . . . . . . . . Secondary . | . . . . . . . . . . . . . . . . . . . . . . . . . . . . . . . . . . . . . Self-Inflicted Damage 443 | . . . . . . . . 37 . . . 113 32 . 23 . 21 . . . . . 30 . 2 . . 43 . 6 100 . 16 13 . 7 Shots 38 | . . . . . . . . 2 . . . 5 2 . 1 . 1 . . . . . 1 . 1 . . 1 . 1 18 . 2 2 . 1 Rammed . | . . . . . . . . . . . . . . . . . . . . . . . . . . . . . . . . . . . . . Targets Rammed . | . . . . . . . . . . . . . . . . . . . . . . . . . . . . . . . . . . . . . Kicked . | . . . . . . . . . . . . . . . . . . . . . . . . . . . . . . . . . . . . . Crushed . | . . . . . . . . . . . . . . . . . . . . . . . . . . . . . . . . . . . . . Highest Temperature 307 | 18 212 . 2 . . . 16 . 7 . 290 135 83 247 67 33 6 4 16 28 6 48 247 93 170 10 29 245 . 231 307 . 41 . . 280 Average Temperature 36 | 12 62 . 2 . . . 7 . 7 . 120 53 37 130 34 10 6 3 10 7 4 13 64 27 26 7 9 118 . 37 81 . 14 . . 31 Received Heat Transfer 3207 | . 90 60 237 . . . 279 . 360 147 12 . 60 24 132 162 159 6 96 102 . 18 18 45 102 . 30 118 . 189 57 117 93 45 206 243 Effects 3 | . . . . . . . . . . . . . . . . . . . . . . . . . . . . 1 . . 1 . . . . 1 Energy Bleed 2 | . . . . . . . . . . . . . . . . . . . . . . . . . . . . 1 . . . . . . . 1 Short Circuit 1 | . . . . . . . . . . . . . . . . . . . . . . . . . . . . . . . 1 . . . . . Siege Activations . | . . . . . . . . . . . . . . . . . . . . . . . . . . . . . . . . . . . . . Robots Corrupted 12 | . . . . . . . . . . . . 2 . . 1 3 4 . . . . . . . . . . . . . 2 . . . . . Combat Hostiles 12 | . . . . . . . . . . . . 2 . . 1 3 4 . . . . . . . . . . . . . 2 . . . . . Parts Fried 40 | . . . . . . . . . . 6 . 4 . . 4 4 4 . . . . . 5 . 1 . 4 . . 2 6 . . . . . Impact Corruptions . | . . . . . . . . . . . . . . . . . . . . . . . . . . . . . . . . . . . . . Robots Melted . | . . . . . . . . . . . . . . . . . . . . . . . . . . . . . . . . . . . . . Combat Hostiles . | . . . . . . . . . . . . . . . . . . . . . . . . . . . . . . . . . . . . . Parts Melted 6 | . . . . . . . . . . . . . . . . . . . . . . . . . . . . . . . . . 1 . 2 3 Heat Transferred 2625 | 25 950 . . . . . . . . 150 . 50 . . . . 200 . . 500 . . . . 200 50 250 50 . . 200 . . . . . Parts Sabotaged . | . . . . . . . . . . . . . . . . . . . . . . . . . . . . . . . . . . . . . Parts Stolen 3 | . . . . . . . . . . . . 3 . . . . . . . . . . . . . . . . . . . . . . . . Parts Stripped . | . . . . . . . . . . . . . . . . . . . . . . . . . . . . . . . . . . . . . Power Chain Reactions 22 | . . . . . . . . 2 . 4 . 2 . . . . 4 . . . . . 1 . 4 1 2 1 . . 1 . . . . . Missiles Intercepted . | . . . . . . . . . . . . . . . . . . . . . . . . . . . . . . . . . . . . . Alert | -11 -10 -10 -9 -9 -9 -8 -8 -8 -8 -8 -7 -7 -7 -7 -6 -6 -6 -6 -6 -5 -5 -5 -5 -5 -5 -4 -4 -4 -4 -3 -3 -3 -3 -2 -2 -1 ------- Run | Scr Mat Min Mat Min Exi Min Mat Gar Mat Gar Fac Low Low Dat Pro Fac Gar Fac Gar Fac Was Fac Gar Fac Gar Fac Gar Arm Lab Res Gar Res Gar Res Gar Acc Peak Influence 3928 | 5 231 151 540 126 . 175 221 511 324 522 386 . . . . 540 590 429 216 1092 274 191 659 395 764 579 862 3928 . 543 417 465 398 365 330 3534 Average Influence 626 | 1 80 124 237 125 . 138 89 355 147 339 142 . . . . 333 471 296 131 626 266 132 423 310 528 539 561 1454 . 242 333 363 342 259 172 1599 Maximum Alert Level 5 | . 1 . 2 . . . 1 2 1 2 1 . . . . 2 2 2 1 3 1 . 2 1 3 2 3 5 . 2 2 2 1 1 1 5 Low Security (%) 26 | 100 92 100 42 100 . 100 96 14 62 6 65 . . . . . . 13 53 4 . 100 20 . . . . . . 37 . . . 18 48 1 Level 1 30 | . 7 . 45 . . . 3 54 37 64 34 . . . . 77 23 77 46 1 100 . 13 100 26 . 7 2 . 50 85 65 100 81 51 8 Level 2 19 | . . . 12 . . . . 30 . 29 . . . . . 22 76 9 . 72 . . 65 . 45 100 75 28 . 12 15 34 . . . 2 Level 3 6 | . . . . . . . . . . . . . . . . . . . . 21 . . . . 28 . 16 12 . . . . . . . 20 Level 4 5 | . . . . . . . . . . . . . . . . . . . . . . . . . . . . 24 . . . . . . . 17 Level 5 3 | . . . . . . . . . . . . . . . . . . . . . . . . . . . . 12 . . . . . . . 14 High Security 7 | . . . . . . . . . . . . . . . . . . . . . . . . . . . . 19 . . . . . . . 35 Max Security . | . . . . . . . . . . . . . . . . . . . . . . . . . . . . . . . . . . . . . Squads Dispatched 134 | . 4 . 3 . . . 7 . 3 . 8 . . . . 7 . 1 . 3 . 4 . 2 . 1 . 18 . 7 . 2 . 4 . 60 Investigation 27 | . 2 . 2 . . . 3 . . . 3 . . . . 2 . 1 . . . 1 . . . 1 . 6 . 1 . . . 2 . 3 Extermination 11 | . . . . . . . . . . . 1 . . . . 1 . . . . . 1 . . . . . 2 . 2 . . . . . 4 Reinforcement 21 | . 2 . 1 . . . 2 . 1 . 1 . . . . 2 . . . 2 . . . 1 . . . . . 1 . 2 . 1 . 5 Assault 52 | . . . . . . . . . . . . . . . . 1 . . . 1 . . . . . . . 10 . 1 . . . . . 39 Garrison 23 | . . . . . . . 2 . 2 . 3 . . . . 1 . . . . . 2 . 1 . . . . . 2 . . . 1 . 9 Intercept . | . . . . . . . . . . . . . . . . . . . . . . . . . . . . . . . . . . . . . Construction Impeded 11 | . . . . . . . 2 . . . . . . . . 1 . . . 1 . . . . . . . . . 1 . 1 . . . 5 Haulers Reinforced 2 | . . . . . . . . . . . . . . . . . . . . 1 . . . 1 . . . . . . . . . . . . Alert ID Control Effect 48 | . . . . . . . . . . . . . . . . . . . . . . . . . . . . . . . . 8 8 4 2 26 Stealth | -11 -10 -10 -9 -9 -9 -8 -8 -8 -8 -8 -7 -7 -7 -7 -6 -6 -6 -6 -6 -5 -5 -5 -5 -5 -5 -4 -4 -4 -4 -3 -3 -3 -3 -2 -2 -1 --------- Run | Scr Mat Min Mat Min Exi Min Mat Gar Mat Gar Fac Low Low Dat Pro Fac Gar Fac Gar Fac Was Fac Gar Fac Gar Fac Gar Arm Lab Res Gar Res Gar Res Gar Acc Distress Signals 22 | . 1 . 4 . . . 2 . 3 . . . . . . 2 . . . . . . . 1 . 2 . 1 . 2 . 1 . 1 . 2 Communications Jammed . | . . . . . . . . . . . . . . . . . . . . . . . . . . . . . . . . . . . . . Distress Signals . | . . . . . . . . . . . . . . . . . . . . . . . . . . . . . . . . . . . . . Times Spotted 943 | . 24 8 27 . . 7 29 14 27 12 6 14 8 4 14 25 19 4 14 19 4 3 28 6 26 10 10 110 . 33 17 16 27 15 32 331 Peak Tracking Total 37 | . 7 3 7 . . 3 6 3 5 7 2 4 3 4 4 9 5 1 6 5 4 3 9 4 6 5 4 15 . 5 6 5 6 3 6 37 Tactical Retreats 76 | . 3 1 . . . 1 . 1 2 2 . 3 2 . 3 1 4 . 1 2 1 . 4 . 6 1 4 4 . 1 5 1 1 . 4 18 Traps | -11 -10 -10 -9 -9 -9 -8 -8 -8 -8 -8 -7 -7 -7 -7 -6 -6 -6 -6 -6 -5 -5 -5 -5 -5 -5 -4 -4 -4 -4 -3 -3 -3 -3 -2 -2 -1 ------- Run | Scr Mat Min Mat Min Exi Min Mat Gar Mat Gar Fac Low Low Dat Pro Fac Gar Fac Gar Fac Was Fac Gar Fac Gar Fac Gar Arm Lab Res Gar Res Gar Res Gar Acc Traps Triggered 71 | . 1 . 1 . . . 1 4 . 5 . . . . . 2 6 1 8 3 . 2 5 . 3 . 2 9 . 2 2 . 3 3 8 . Indirectly 16 | . . . . . . . . . . 1 . . . . . . 1 . . 2 . . 2 . 1 . . 5 . 1 . . . 3 . . Trap Hack Attempts . | . . . . . . . . . . . . . . . . . . . . . . . . . . . . . . . . . . . . . Triggered . | . . . . . . . . . . . . . . . . . . . . . . . . . . . . . . . . . . . . . Disarmed 4 | . . . . . . . . . . . 4 . . . . . . . . . . . . . . . . . . . . . . . . . Reprogrammed 11 | . . . . . . . . . . . . . . . . . . . . 2 . . . . . . . 3 . . . . . . . 6 Reused 4 | . . . . . . . . . . . . . . . . . . . . 1 . . . . . . . 3 . . . . . . . . Traps Extracted . | . . . . . . . . . . . . . . . . . . . . . . . . . . . . . . . . . . . . . Installed 3 | . . . . . . . . . . . . . . . 3 . . . . . . . . . . . . . . . . . . . . . Triggered 11 | . . . . . . . . . . . . . . . 2 . 1 . . 1 . . . . . . . 5 . 1 1 . . . . . Power Sources Rigged 7 | . . . . . . . . . 6 . . . . . 1 . . . . . . . . . . . . . . . . . . . . . Exploded 4 | . . . . . . . . . 4 . . . . . . . . . . . . . . . . . . . . . . . . . . . Machines | -11 -10 -10 -9 -9 -9 -8 -8 -8 -8 -8 -7 -7 -7 -7 -6 -6 -6 -6 -6 -5 -5 -5 -5 -5 -5 -4 -4 -4 -4 -3 -3 -3 -3 -2 -2 -1 ---------- Run | Scr Mat Min Mat Min Exi Min Mat Gar Mat Gar Fac Low Low Dat Pro Fac Gar Fac Gar Fac Was Fac Gar Fac Gar Fac Gar Arm Lab Res Gar Res Gar Res Gar Acc Machines Disabled 60 | . . . . . . . 1 1 . 2 3 1 . 1 1 2 4 . . 18 . 1 4 . 2 . 3 9 . . . . . . 1 6 Max in Single Turn 15 | . . . . . . . 1 1 . 1 1 1 . 1 1 2 2 . . 15 . 1 2 . 1 . 1 1 . . . . . . 1 1 Garrison Access 8 | . . . . . . . . . . . 1 . . . . . . . . 1 . . . . . . . . . 1 . . . . . 5 Garrison Relay 12 | . . . . . . . . 1 . 2 . . . . . . 1 . . . . . 2 . 2 . 3 . . . . . . . 1 . Energy Cycler 1 | . . . . . . . . . . . . . . . . . . . . . . . . . . . . 1 . . . . . . . . Machines Sabotaged . | . . . . . . . . . . . . . . . . . . . . . . . . . . . . . . . . . . . . . Garrisons Compromised . | . . . . . . . . . . . . . . . . . . . . . . . . . . . . . . . . . . . . . Overloaded Fab Kills . | . . . . . . . . . . . . . . . . . . . . . . . . . . . . . . . . . . . . . Fab Network Shutdowns 3 | . . . . . . . . . . . . . . . . . . . . 1 . . . . . . . 1 . . . . . . . 1 Hacking | -11 -10 -10 -9 -9 -9 -8 -8 -8 -8 -8 -7 -7 -7 -7 -6 -6 -6 -6 -6 -5 -5 -5 -5 -5 -5 -4 -4 -4 -4 -3 -3 -3 -3 -2 -2 -1 --------- Run | Scr Mat Min Mat Min Exi Min Mat Gar Mat Gar Fac Low Low Dat Pro Fac Gar Fac Gar Fac Was Fac Gar Fac Gar Fac Gar Arm Lab Res Gar Res Gar Res Gar Acc Machines Accessed 135 | . 8 . 5 . 2 . 8 . 8 . 15 . 1 4 . 5 . 7 . 8 . 4 . 2 . 4 . 20 . 6 . 2 . 7 . 19 Terminals 73 | . 6 . 4 . . . 6 . 5 . 9 . . . . 1 . 2 . 5 . 1 . 1 . 3 . 12 . 4 . . . 4 . 10 Fabricators 18 | . . . . . . . . . . . 1 . . . . 1 . 1 . 2 . 1 . . . . . 7 . . . 1 . 2 . 2 Repair Stations . | . . . . . . . . . . . . . . . . . . . . . . . . . . . . . . . . . . . . . Recycling Units 16 | . 2 . 1 . . . 1 . 2 . 2 . . . . 1 . 3 . 1 . . . . . . . 1 . . . . . . . 2 Scanalyzers 3 | . . . . . . . . . . . 1 . . . . 1 . . . . . 1 . . . . . . . . . . . . . . Garrison Access 18 | . . . . . . . 1 . 1 . 2 . . . . 1 . 1 . . . 1 . 1 . 1 . . . 2 . 1 . 1 . 5 Total Hacks 453 | . 21 . 15 . 2 . 33 . 26 . 46 . 1 25 . 12 . 20 . 30 . 15 . 7 . 13 . 85 . 20 . 3 . 25 . 54 Successful 289 | . 13 . 10 . 2 . 21 . 20 . 33 . 1 25 . 7 . 13 . 16 . 12 . 3 . 4 . 51 . 12 . 2 . 12 . 32 Failed 163 | . 8 . 5 . . . 12 . 6 . 12 . . . . 5 . 7 . 14 . 3 . 4 . 9 . 34 . 8 . 1 . 13 . 22 Catastrophic 20 | . 1 . 1 . . . . . . . 2 . . . . 1 . 1 . 1 . . . 1 . 3 . 6 . . . . . 1 . 2 Database Lockouts 1 | . . . . . . . . . . . 1 . . . . . . . . . . . . . . . . . . . . . . . . . Manual 226 | . 8 . 8 . 1 . 18 . 17 . 19 . . . 1 3 . 9 . 18 . 6 . 5 . 12 . 43 . 8 . 2 . 18 . 30 Terminals 257 | . 17 . 13 . . . 26 . 22 . 25 . . . . 3 . 8 . 20 . 2 . 2 . 9 . 54 . 15 . . . 15 . 26 Fabricators 72 | . . . . . . . . . . . 8 . . . . 3 . 3 . 9 . 4 . . . . . 30 . . . 2 . 7 . 6 Repair Stations . | . . . . . . . . . . . . . . . . . . . . . . . . . . . . . . . . . . . . . Recycling Units 24 | . 4 . 2 . . . 2 . 2 . 6 . . . . 1 . 3 . 1 . . . . . . . 1 . . . . . . . 2 Scanalyzers 8 | . . . . . . . . . . . 2 . . . . 1 . . . . . 5 . . . . . . . . . . . . . . Garrison Access 64 | . . . . . . . 5 . 2 . 5 . . . . 4 . 6 . . . 4 . 5 . 4 . . . 5 . 1 . 3 . 20 Terminal Hacks 135 | . 9 . 9 . 2 . 12 . 11 . 11 . 1 25 . 2 . 2 . 8 . 1 . 1 . 1 . 19 . 6 . . . 5 . 10 Record 13 | . . . 1 . 1 . . . . . . . . 11 . . . . . . . . . . . . . . . . . . . . . . Part Schematic 8 | . . . . . . . 1 . . . 1 . . 6 . . . . . . . . . . . . . . . . . . . . . . Robot Schematic 5 | . . . . . . . . . . . . . . 5 . . . . . . . . . . . . . . . . . . . . . . Robot Analysis 8 | . 1 . 2 . . . 1 . 1 . . . . . . . . . . 1 . . . . . . . 1 . . . . . . . 1 Prototype ID Bank 12 | . 3 . 1 . . . 1 . 1 . . . . 3 . . . . . . . . . . . . . 2 . . . . . . . 1 Open Door 3 | . . . . . . . . . . . . . 1 . . . . . . . . . . . . . . 1 . . . . . . . 1 Level Access Points 2 | . . . . . . . 1 . . . . . . . . . . . . . . . . . . . . . . . . . . 1 . . Branch Access Points 2 | . . . . . . . 1 . . . 1 . . . . . . . . . . . . . . . . . . . . . . . . . Machine Index 4 | . . . . . . . 1 . . . 1 . . . . . . . . . . . . . . . . . . . . . . 1 . 1 Terminal Index 1 | . . . 1 . . . . . . . . . . . . . . . . . . . . . . . . . . . . . . . . . Fabricator Index 1 | . . . . . . . . . . . . . . . . . . . . . . . . . . . . . . 1 . . . . . . Garrison Index 2 | . . . . . . . . . . . . . . . . . . . . 1 . . . . . . . . . 1 . . . . . . Unreport Threat 40 | . 3 . 2 . . . 4 . 5 . 3 . . . . 2 . 2 . 3 . 1 . 1 . 1 . 6 . 2 . . . 2 . 3 Locate Traps 5 | . . . . . . . . . 1 . 1 . . . . . . . . 1 . . . . . . . 1 . . . . . . . 1 Disarm Traps 2 | . . . . . . . . . . . 2 . . . . . . . . . . . . . . . . . . . . . . . . . Reprogram Traps 7 | . . . . . . . . . . . . . . . . . . . . 2 . . . . . . . 4 . . . . . . . 1 Dispatch Records 1 | . . . 1 . . . . . . . . . . . . . . . . . . . . . . . . . . . . . . . . . Transport Status 1 | . . . . . . . . . 1 . . . . . . . . . . . . . . . . . . . . . . . . . . . Recall Extermination 1 | . . . . . . . . . . . 1 . . . . . . . . . . . . . . . . . . . . . . . . . Recall Assault 2 | . . . . . . . . . . . . . . . . . . . . . . . . . . . . 1 . . . . . . . 1 Hauler Manifests 3 | . 1 . 1 . . . . . 1 . . . . . . . . . . . . . . . . . . . . . . . . . . . Registered Components 4 | . 1 . . . . . 1 . . . . . . . . . . . . . . . . . . . . 1 . 1 . . . . . . Registered Prototypes 3 | . . . . . . . . . 1 . 1 . . . . . . . . . . . . . . . . 1 . . . . . . . . Zone Layout 4 | . . . . . . . 1 . . . . . . . . . . . . . . . . . . . . 1 . 1 . . . 1 . . EX-Prototype ID Bank 1 | . . . . . 1 . . . . . . . . . . . . . . . . . . . . . . . . . . . . . . . Fabricator Hacks 36 | . . . . . . . . . . . 5 . . . . 1 . 2 . 3 . 2 . . . . . 16 . . . . . 3 . 4 Network Status 1 | . . . . . . . . . . . . . . . . . . . . . . . . . . . . 1 . . . . . . . . Load Schematic 15 | . . . . . . . . . . . 1 . . . . 1 . 1 . 1 . 1 . . . . . 6 . . . . . 2 . 2 Build 20 | . . . . . . . . . . . 4 . . . . . . 1 . 2 . 1 . . . . . 9 . . . . . 1 . 2 Repair Station Hacks . | . . . . . . . . . . . . . . . . . . . . . . . . . . . . . . . . . . . . . Recycling Unit Hacks 18 | . 2 . 1 . . . 1 . 2 . 4 . . . . 1 . 3 . 1 . . . . . . . 1 . . . . . . . 2 Process 1 | . . . . . . . . . . . 1 . . . . . . . . . . . . . . . . . . . . . . . . . Retrieve Matter 1 | . . . . . . . . . . . 1 . . . . . . . . . . . . . . . . . . . . . . . . . Retrieve Components 16 | . 2 . 1 . . . 1 . 2 . 2 . . . . 1 . 3 . 1 . . . . . . . 1 . . . . . . . 2 Scanalyzer 7 | . . . . . . . . . . . 2 . . . . 1 . . . . . 4 . . . . . . . . . . . . . . Insert Component 3 | . . . . . . . . . . . 1 . . . . 1 . . . . . 1 . . . . . . . . . . . . . . Analyze 4 | . . . . . . . . . . . 1 . . . . . . . . . . 3 . . . . . . . . . . . . . . Garrison Access Hacks 18 | . . . . . . . 1 . 1 . 2 . . . . 1 . 2 . . . 1 . 1 . 1 . . . 2 . 1 . 1 . 4 Unlock Access 12 | . . . . . . . 1 . 1 . 1 . . . . 1 . 1 . . . 1 . 1 . 1 . . . 2 . 1 . 1 . . Seal Access 5 | . . . . . . . . . . . 1 . . . . . . . . . . . . . . . . . . . . . . . . 4 Coupler Status 1 | . . . . . . . . . . . . . . . . . . 1 . . . . . . . . . . . . . . . . . . Unauthorized Hacks 196 | . 4 . . . . . 17 . 13 . 21 . . . . 4 . 12 . 11 . 10 . 5 . 7 . 35 . 12 . 3 . 7 . 35 Terminals 38 | . 2 . . . . . 4 . 5 . 4 . . . . . . 2 . 1 . 1 . . . 1 . 10 . 2 . . . 1 . 5 Track 8 | . 1 . . . . . . . 2 . . . . . . . . . . . . . . . . . . 5 . . . . . . . . Assimilate 6 | . . . . . . . . . . . 2 . . . . . . 1 . . . . . . . . . . . 1 . . . . . 2 Botnet 15 | . . . . . . . 1 . 2 . 2 . . . . . . 1 . 1 . 1 . . . 1 . 2 . 1 . . . 1 . 2 Disrupt 9 | . 1 . . . . . 3 . 1 . . . . . . . . . . . . . . . . . . 3 . . . . . . . 1 Fabricators 15 | . . . . . . . . . . . 2 . . . . . . 1 . 3 . 2 . . . . . 5 . . . 1 . 1 . . Report 1 | . . . . . . . . . . . . . . . . . . . . . . . . . . . . . . . . 1 . . . . Prioritize 9 | . . . . . . . . . . . 1 . . . . . . 1 . 1 . 1 . . . . . 4 . . . . . 1 . . Siphon 4 | . . . . . . . . . . . 1 . . . . . . . . 1 . 1 . . . . . 1 . . . . . . . . Haulers 1 | . . . . . . . . . . . . . . . . . . . . 1 . . . . . . . . . . . . . . . . Repair Stations . | . . . . . . . . . . . . . . . . . . . . . . . . . . . . . . . . . . . . . Recycling Units 2 | . . . . . . . 1 . . . 1 . . . . . . . . . . . . . . . . . . . . . . . . . Mask 2 | . . . . . . . 1 . . . 1 . . . . . . . . . . . . . . . . . . . . . . . . . Scanalyzers . | . . . . . . . . . . . . . . . . . . . . . . . . . . . . . . . . . . . . . Garrison Access 20 | . . . . . . . 2 . 1 . 2 . . . . 1 . 1 . . . 1 . 1 . 1 . . . 2 . . . 1 . 7 Reprogram 19 | . . . . . . . 2 . 1 . 1 . . . . 1 . 1 . . . 1 . 1 . 1 . . . 2 . . . 1 . 7 Watchers 1 | . . . . . . . . . . . 1 . . . . . . . . . . . . . . . . . . . . . . . . . Data Cores Recovered 3 | . . . . . . . . . . . . . . . . . . . . . . . . . . . . 1 . . . . . 1 . 1 Used 2 | . . . . . . . . . . . . . . . . . . . . . . . . . . . . . . . . . . 1 . 1 Hacking Detections 99 | . 6 . 3 . . . 7 . 3 . 12 . . . . 3 . 4 . 6 . 3 . 2 . 4 . 13 . 6 . 2 . 6 . 19 Full Trace Events 19 | . 1 . 1 . . . 2 . . . 2 . . . . 1 . 1 . . . 1 . . . 1 . 3 . 1 . . . 2 . 3 Feedback Events 1 | . . . . . . . . . . . . . . . . . . . . . . . . . . . . . . . . . . . . 1 Corruption 1 | . . . . . . . . . . . . . . . . . . . . . . . . . . . . . . . . . . . . 1 Feedback Blocked . | . . . . . . . . . . . . . . . . . . . . . . . . . . . . . . . . . . . . . Robot Schematics Acquired 5 | . . . . . . . . . . . . . . 5 . . . . . . . . . . . . . . . . . . . . . . Robots Built 34 | . . . . . . . . . . . . . . . . . . . . 8 . . . . . . . 18 . . . . . 4 . 4 Matter 3447 | . . . . . . . . . . . . . . . . . . . . 378 . . . . . . . 2565 . . . . . 252 . 252 Time 1578 | . . . . . . . . . . . . . . . . . . . . 134 . . . . . . . 1266 . . . . . 134 . 44 Total Robot Build Rating 154 | . . . . . . . . . . . . . . . . . . . . 32 . . . . . . . 90 . . . . . 16 . 16 Part Schematics Acquired 10 | . . . . . . . 1 . . . 2 . . 6 . . . . . . . 1 . . . . . . . . . . . . . . Parts Built 7 | . . . . . . . . . . . 4 . . . . . . 1 . . . 2 . . . . . . . . . . . . . . Matter 1005 | . . . . . . . . . . . 656 . . . . . . 190 . . . 159 . . . . . . . . . . . . . . Time 216 | . . . . . . . . . . . 116 . . . . . . 47 . . . 53 . . . . . . . . . . . . . . Total Part Build Rating 29 | . . . . . . . . . . . 12 . . . . . . 5 . . . 12 . . . . . . . . . . . . . . Parts Repaired . | . . . . . . . . . . . . . . . . . . . . . . . . . . . . . . . . . . . . . Time . | . . . . . . . . . . . . . . . . . . . . . . . . . . . . . . . . . . . . . Parts Recycled . | . . . . . . . . . . . . . . . . . . . . . . . . . . . . . . . . . . . . . Recycled Matter 288 | . . . . . . . . . . . 288 . . . . . . . . . . . . . . . . . . . . . . . . . Retrieved Matter 288 | . . . . . . . . . . . 288 . . . . . . . . . . . . . . . . . . . . . . . . . Retrieved Components 66 | . 3 . 10 . . . 9 . 11 . 6 . . . . 1 . 5 . 7 . . . . . . . 2 . . . . . . . 12 Parts Scanalyzed 2 | . . . . . . . . . . . 1 . . . . . . . . . . 1 . . . . . . . . . . . . . . Part Schematics Acquired 2 | . . . . . . . . . . . 1 . . . . . . . . . . 1 . . . . . . . . . . . . . . Parts Damaged . | . . . . . . . . . . . . . . . . . . . . . . . . . . . . . . . . . . . . . Bothacking | -11 -10 -10 -9 -9 -9 -8 -8 -8 -8 -8 -7 -7 -7 -7 -6 -6 -6 -6 -6 -5 -5 -5 -5 -5 -5 -4 -4 -4 -4 -3 -3 -3 -3 -2 -2 -1 ------------ Run | Scr Mat Min Mat Min Exi Min Mat Gar Mat Gar Fac Low Low Dat Pro Fac Gar Fac Gar Fac Was Fac Gar Fac Gar Fac Gar Arm Lab Res Gar Res Gar Res Gar Acc Used RIF Installer 10 | . . . . . . . . 1 . 1 . . . . . . 1 . 1 . . . 1 . 1 . 1 . . . 1 . 1 . 1 . Coupler Efficiency 1 | . . . . . . . . . . . . . . . . . . . 1 . . . . . . . . . . . . . . . . . Robot Detection 1 | . . . . . . . . . . . . . . . . . 1 . . . . . . . . . . . . . . . . . . . Patrol Navigation 1 | . . . . . . . . . . 1 . . . . . . . . . . . . . . . . . . . . . . . . . . Alert ID Control 1 | . . . . . . . . . . . . . . . . . . . . . . . . . . . . . . . 1 . . . . . Structural Interface 1 | . . . . . . . . . . . . . . . . . . . . . . . . . 1 . . . . . . . . . . . Program Shield 1 | . . . . . . . . . . . . . . . . . . . . . . . . . . . . . . . . . 1 . . . Autooverride 1 | . . . . . . . . . . . . . . . . . . . . . . . . . . . . . . . . . . . 1 . Autoassimilate 2 | . . . . . . . . . . . . . . . . . . . . . . . 1 . . . 1 . . . . . . . . . Robots Hacked 161 | . . . . . . . . . . 1 . . . . . . 2 1 3 3 . . . 1 . . . 19 . 10 2 7 16 5 11 80 Non-combat 4 | . . . . . . . . . . . . . . . . . . 1 . . . . . . . . . . . . . . . . . 3 Combat 157 | . . . . . . . . . . 1 . . . . . . 2 . 3 3 . . . 1 . . . 19 . 10 2 7 16 5 11 77 Autooverrided 22 | . . . . . . . . . . . . . . . . . . . . . . . . . . . . . . . . . . . . 22 Autoassimilated 105 | . . . . . . . . . . . . . . . . . . . . . . . . 1 . . . 19 . 10 2 7 7 3 8 48 Robot Hacks Applied 35 | . . . . . . . . . . 1 . . . . . . 2 1 3 3 . . . . . . . . . . . . 9 2 3 11 parse_system 2 | . . . . . . . . . . . . . . . . . . . . . . . . . . . . . . . . . 1 . . 1 no_distress 1 | . . . . . . . . . . . . . . . . . . 1 . . . . . . . . . . . . . . . . . . drop_inventory 1 | . . . . . . . . . . . . . . . . . . . . . . . . . . . . . . . . . . . . 1 map_route 1 | . . . . . . . . . . . . . . . . . . . . . . . . . . . . . . . . . . . . 1 disable_weapons 1 | . . . . . . . . . . . . . . . . . . . . . . . . . . . . . . . . . . . . 1 overwrite_iff 16 | . . . . . . . . . . 1 . . . . . . . . 3 2 . . . . . . . . . . . . 4 1 3 2 formatsys_high 13 | . . . . . . . . . . . . . . . . . 2 . . 1 . . . . . . . . . . . . 4 1 . 5 Relay Couplers Released 27 | . . . . . . . . 2 . 3 . . . . . . 2 1 . 1 . . 4 . 3 . 5 . . 1 . . . . 1 4 Machine Destruction 26 | . . . . . . . . 2 . 3 . . . . . . 2 . . 1 . . 4 . 3 . 5 . . 1 . . . . 1 4 Programmers 1 | . . . . . . . . . . . . . . . . . . 1 . . . . . . . . . . . . . . . . . . Attached 15 | . . . . . . . . 2 . . . . . . . . 1 1 . 1 . . 1 . 1 . 4 . . . . . . . . 4 Robots Rewired 14 | . . . . . . . . . . . . . . . . 1 . . . . . . . . . . . 7 . . . . . . 6 . Allies Hacked 6 | . . . . . . . . . . . . . . . . . . . . . . . . . . . . 4 . . . . . . . 2 Hacks Repelled 5 | . . . . . . . . . . . . . . . . . . . . . . . . . . . . . . . . . . . . 5 Allies | -11 -10 -10 -9 -9 -9 -8 -8 -8 -8 -8 -7 -7 -7 -7 -6 -6 -6 -6 -6 -5 -5 -5 -5 -5 -5 -4 -4 -4 -4 -3 -3 -3 -3 -2 -2 -1 -------- Run | Scr Mat Min Mat Min Exi Min Mat Gar Mat Gar Fac Low Low Dat Pro Fac Gar Fac Gar Fac Was Fac Gar Fac Gar Fac Gar Arm Lab Res Gar Res Gar Res Gar Acc Total Allies 245 | . . 3 . . . . 2 . 1 1 3 . . . . 2 2 2 3 11 . 1 . 3 . . . 54 . 11 2 7 15 10 17 95 Largest Group 28 | . . 3 . . . . 2 2 1 2 3 1 . . . 1 3 1 1 9 . 1 . 2 2 . . 28 . 6 4 3 5 7 8 14 Highest-Rated Group 1352 | . . 40 . . . . 30 30 15 31 57 10 . . . 32 90 54 47 137 . 49 . 58 58 . . 1352 . 291 188 167 247 315 380 820 Highest-Rated Ally 90 | . . 16 . . . . 15 15 15 16 26 10 . . . 32 32 54 47 41 . 49 . 49 29 . . 64 . 64 64 64 64 69 69 90 Total Orders 8 | . . . . . . . . . . . . . . . . . 2 . . 3 . . . . . . . . . 1 . . . . . 2 STAY 3 | . . . . . . . . . . . . . . . . . . . . . . . . . . . . . . 1 . . . . . 2 GOTO 3 | . . . . . . . . . . . . . . . . . 2 . . 1 . . . . . . . . . . . . . . . . FOLLOW 2 | . . . . . . . . . . . . . . . . . . . . 2 . . . . . . . . . . . . . . . . Ally Attacks 1235 | . . 5 . . . . . 8 . 14 2 . . . . 3 5 2 12 65 . 3 . 1 13 . . 365 . 64 21 41 65 51 91 404 Total Damage 37071 | . . 52 . . . . . 77 . 212 62 . . . . 94 144 23 210 714 . 93 . 18 193 . . 13668 . 1263 349 1206 2338 1580 2633 12142 Kills 174 | . . 1 . . . . . 2 . 2 . . . . . . . . 1 5 . . . . 1 . . 79 . 9 1 8 8 5 6 46 Allies Corrupted 8 | . . . . . . . . . . . . . . . . . . . . . . . . . . . . 2 . . . . . . 1 5 Allies Melted 2 | . . . . . . . . . . . . . . . . . . . . . . . . . . . . . . . . . . . 2 . Intel | -11 -10 -10 -9 -9 -9 -8 -8 -8 -8 -8 -7 -7 -7 -7 -6 -6 -6 -6 -6 -5 -5 -5 -5 -5 -5 -4 -4 -4 -4 -3 -3 -3 -3 -2 -2 -1 ------- Run | Scr Mat Min Mat Min Exi Min Mat Gar Mat Gar Fac Low Low Dat Pro Fac Gar Fac Gar Fac Was Fac Gar Fac Gar Fac Gar Arm Lab Res Gar Res Gar Res Gar Acc Robot Analysis Total 8 | . 1 . 2 . . . 1 . 1 . . . . . . . . . . 1 . . . . . . . 1 . . . . . . . 1 Derelict Logs Recovered 4 | . . 2 . . . . . . . . . . 2 . . . . . . . . . . . . . . . . . . . . . . . Drone Launches 1 | . . . . . 1 . . . . . . . . . . . . . . . . . . . . . . . . . . . . . . . Drone Recoveries . | . . . . . . . . . . . . . . . . . . . . . . . . . . . . . . . . . . . . . Exploration | -11 -10 -10 -9 -9 -9 -8 -8 -8 -8 -8 -7 -7 -7 -7 -6 -6 -6 -6 -6 -5 -5 -5 -5 -5 -5 -4 -4 -4 -4 -3 -3 -3 -3 -2 -2 -1 ------------- Run | Scr Mat Min Mat Min Exi Min Mat Gar Mat Gar Fac Low Low Dat Pro Fac Gar Fac Gar Fac Was Fac Gar Fac Gar Fac Gar Arm Lab Res Gar Res Gar Res Gar Acc Turns Passed 18776 | 47 573 312 649 55 158 225 530 466 874 324 761 398 355 102 288 626 436 494 392 763 76 264 521 217 407 213 557 1743 13 813 360 271 415 422 715 2941 Spaces Moved 18767 | 73 612 456 577 97 307 337 424 554 915 284 1073 490 473 140 340 622 376 753 276 703 99 192 304 139 305 305 477 1584 9 768 279 199 398 482 563 2782 Core 16803 | 73 612 456 577 97 307 337 424 554 915 284 1073 490 473 140 340 622 376 753 276 703 99 192 304 139 305 305 477 1584 9 768 279 199 398 482 563 818 Treads . | . . . . . . . . . . . . . . . . . . . . . . . . . . . . . . . . . . . . . Legs . | . . . . . . . . . . . . . . . . . . . . . . . . . . . . . . . . . . . . . Wheels . | . . . . . . . . . . . . . . . . . . . . . . . . . . . . . . . . . . . . . Hover . | . . . . . . . . . . . . . . . . . . . . . . . . . . . . . . . . . . . . . Flight 1964 | . . . . . . . . . . . . . . . . . . . . . . . . . . . . . . . . . . . . 1964 Fastest Speed 32 | 50 50 50 50 50 50 50 50 50 50 50 50 50 50 50 50 50 50 50 50 50 50 50 100 100 50 50 50 50 50 50 50 50 50 50 50 32 Average Speed 51 | 50 50 50 50 50 50 50 50 50 50 50 50 65 50 50 50 60 50 50 50 50 50 75 100 100 73 50 50 50 50 59 50 50 50 50 50 39 Slowest Speed 100 | 50 50 50 50 50 50 50 50 50 50 50 100 100 50 50 50 100 50 50 50 50 50 100 100 100 100 50 50 50 50 100 50 50 50 50 50 50 Overloaded Moves 15 | . . . . . . . . . . . . . . . . . . . . . . . . . . . . . . . . . . . . 15 Propulsion Burnouts . | . . . . . . . . . . . . . . . . . . . . . . . . . . . . . . . . . . . . . Robots Hopped 14 | . . . . . . . . . . . . . . . . . . . . . . . . . . . . . . . . . . . . 14 Cave-ins Triggered . | . . . . . . . . . . . . . . . . . . . . . . . . . . . . . . . . . . . . . Exploration Rate (%) 45 | 4 81 85 39 27 71 97 28 59 64 52 32 69 64 72 51 24 46 19 49 22 80 5 44 4 67 11 69 70 5 22 48 10 60 19 58 40 Regions Visited 36 Branch Regions 10 Pre-discovered Areas 3 | . . . . . 1 . . . . . . . 1 1 . . . . . . . . . . . . . . . . . . . . . . Known Exits Taken 12 | . . . . . . 1 1 . 1 . 1 . . . . 1 . 1 . . . 1 . 1 . 1 . . . 1 . 1 . 1 . . Unknown Exits Taken 12 | 1 1 1 1 1 1 . . . . . . 1 1 1 1 . . . . . . . . . . . . 1 1 . . . . . . . Scrap Searched 8 | . . . . . . 1 . . . . . 2 4 . 1 . . . . . . . . . . . . . . . . . . . . . Spaces Dug 160 | . . . . . . . 3 . 1 . 19 . 2 1 2 15 11 6 1 12 . 2 . 2 5 9 27 8 . 10 . 4 . 1 . 19 Terrain Destroyed 269 | . . . . . . . 3 2 1 4 19 7 2 1 2 51 14 6 1 39 . 3 . 2 14 9 27 28 . 10 . 4 . 1 . 19 Melee 118 | . . . . . . . 3 . 1 . 19 . 2 1 2 15 . 6 1 12 . 2 . 2 5 3 2 8 . 10 . 4 . 1 . 19 Projectile 3 | . . . . . . . . . . . . . . . . . . . . 2 . 1 . . . . . . . . . . . . . . AOE 148 | . . . . . . . . 2 . 4 . 7 . . . 36 14 . . 25 . . . . 9 6 25 20 . . . . . . . . Actions | -11 -10 -10 -9 -9 -9 -8 -8 -8 -8 -8 -7 -7 -7 -7 -6 -6 -6 -6 -6 -5 -5 -5 -5 -5 -5 -4 -4 -4 -4 -3 -3 -3 -3 -2 -2 -1 --------- Run | Scr Mat Min Mat Min Exi Min Mat Gar Mat Gar Fac Low Low Dat Pro Fac Gar Fac Gar Fac Was Fac Gar Fac Gar Fac Gar Arm Lab Res Gar Res Gar Res Gar Acc Total 24868 | 79 789 518 794 98 310 370 591 699 1172 431 1250 551 567 151 429 792 591 842 497 1053 114 298 453 188 427 354 689 2192 16 1001 438 290 571 607 855 3801 Wait 2806 | 2 98 42 78 . 1 16 63 65 131 64 117 23 54 . 23 65 86 51 64 265 1 70 40 15 25 27 78 347 8 87 81 5 57 73 97 487 Move 18707 | 72 611 455 576 96 306 336 423 553 914 283 1072 489 472 139 339 621 375 752 275 703 98 191 303 138 304 304 476 1583 8 767 278 199 397 481 562 2756 Hop 11 | . . . . . . . . . . . . . . . . . . . . . . . . . . . . . . . . . . . . 11 Pick Up 53 | . 2 1 4 . . . 2 . 2 2 1 . 2 . 4 7 1 1 . 1 2 2 1 . 2 . . 3 . 3 1 . 1 3 2 3 Fast Attach 92 | 4 2 . 9 . 1 . 5 3 1 . 10 4 . . 1 3 6 7 . 5 . 8 2 1 2 . 4 2 . 1 1 1 1 . . 8 Attach 11 | . . . . . . . . . . . . 2 . . . 3 1 . . . 1 3 . . . . . . . . . . . . . 1 Detach 21 | . 1 . . . 1 . . 1 1 . 2 2 . . . 1 2 2 . . . 2 . . . . 1 . . . . . . . . 5 Swap 67 | . . . 2 . . . . 6 . 6 3 . . 1 1 3 5 2 2 5 . 1 2 . 1 . . 12 . 1 1 1 1 1 . 10 Drop 94 | . 3 1 10 . . . 3 1 2 . 10 2 1 . 5 9 7 3 . 4 2 6 . . 4 . 2 7 . 3 1 . 3 1 2 2 Fire 1290 | 1 48 12 84 2 . 10 67 20 52 16 8 22 11 . 26 32 28 8 13 19 7 5 14 13 28 5 55 140 . 44 36 26 39 27 71 301 Melee 308 | . . . . . . . 4 4 25 3 22 . 9 11 6 23 3 7 8 18 . 2 25 2 8 3 7 25 . 15 5 10 . 2 1 60 Ram . | . . . . . . . . . . . . . . . . . . . . . . . . . . . . . . . . . . . . . Kick . | . . . . . . . . . . . . . . . . . . . . . . . . . . . . . . . . . . . . . Crush . | . . . . . . . . . . . . . . . . . . . . . . . . . . . . . . . . . . . . . Escape Stasis 478 | . . . . . . . . 40 . 43 . . . . . . 67 . 120 . . . 45 . 29 . 30 . . . 30 . 26 . 48 . Rewire 43 | . . . . . . . . . . . . . . . . 9 2 . . 1 . . . . . . . 7 . . . . . . 22 2 Trap 10 | . . . . . . . . . 6 . . . . . 4 . . . . . . . . . . . . . . . . . . . . . Miscellaneous 877 | . 24 7 31 . 1 8 24 6 38 14 5 7 18 . 20 16 8 9 15 32 3 8 21 19 24 15 36 66 . 80 4 48 46 19 50 155 Route ------- -11/Scrapyard -10/Materials (discovered 5 exits: *Mat x3 / [*Min x2]) -10/Mines -9/Materials (discovered 3 exits: Mat / [*Min] / [*Sto]) -9/Mines -9/Exiles -8/Mines (discovered 2 exits: *Mat x2) -8/Materials (discovered 4 exits: Fac x3 / Gar) -8/Garrison (discovered 3 exits: *Mat x3) -8/Materials (discovered 3 exits: *Fac x2 / Gar) -8/Garrison (discovered 2 exits: *Fac x2) -7/Factory (discovered 5 exits: *Fac x2 / *Low x2 / Gar) -7/Lower Caves -7/Lower Caves (discovered 2 exits: *Fac / *Dat) -7/Data Miner -6/Proximity Caves -6/Factory (discovered 3 exits: [*Low x2] / Gar) -6/Garrison -6/Factory (discovered 3 exits: *Fac / [*Low] / Gar) -6/Garrison (discovered 3 exits: *Fac x3) -5/Factory -5/Waste -5/Factory -5/Garrison -5/Factory (discovered 2 exits: [*Upp] / Gar) -5/Garrison (discovered 2 exits: *Fac x2) -4/Factory (discovered 3 exits: *Res / [*Upp] / Gar) -4/Garrison (discovered 2 exits: *Arm x2) -4/Armory (discovered 3 exits: *Res x2 / [*Lab]) -4/Lab -3/Research -3/Garrison -3/Research -3/Garrison (discovered 2 exits: *Res x2) -2/Research (discovered 4 exits: Acc x3 / Gar) -2/Garrison -1/Access To Epsilon Eridani History --------- Turn | Location | Event 1 | -11/Scrapyard | Upgraded with Weapon slot (x1) 15 | -11/Scrapyard | Discovered new exit (range 15) 48 | -11/Scrapyard | Entered Materials 100 | -10/Materials | Discovered new exit (range 9) 266 | -10/Materials | Discovered new exit (range 15) 293 | -10/Materials | Discovered new exit (range 15) 306 | -10/Materials | Build established: Mutant 307 | -10/Materials | Discovered new exit (range 13) 373 | -10/Materials | Discovered new exit (range 16) 560 | -10/Materials | Reached level 2 621 | -10/Materials | Entered Mines 662 | -10/Mines | Learned Materials security intel 680 | -10/Mines | Received a Rocket Launcher from a helpful Derelict 710 | -10/Mines | Assisted by bots powering up and referring to "LRC-V3" 741 | -10/Mines | Learned location of 1 exit from Materials 743 | -10/Mines | Assembled infested the area 898 | -10/Mines | Discovered new exit (range 10) 927 | -10/Mines | Reached level 3 933 | -10/Mines | Entered Materials 934 | -9/Materials | Identified exit to Materials 935 | -9/Materials | Reached level 4 936 | -9/Materials | Upgraded with Utility slot (x1) 1161 | -9/Materials | Discovered new exit (range 15) 1184 | -9/Materials | Upgraded with Weapon slot (x1) 1252 | -9/Materials | Reached level 5 1278 | -9/Materials | Destroyed 7 combat bots 1296 | -9/Materials | Discovered new exit (range 15) 1404 | -9/Materials | Upgraded with Utility slot (x1) 1503 | -9/Materials | Reached level 6 1535 | -9/Materials | Upgraded with Weapon slot (x1) 1582 | -9/Materials | Entered Mines 1635 | -9/Mines | Deemed a non-threat by the Exiles lab entrance 1635 | -9/Mines | Discovered new exit (range 5) 1637 | -9/Mines | Entered Exiles 1650 | -9/Exiles | Met 8R-AWN 1658 | -9/Exiles | Met EX-HEX 1677 | -9/Exiles | Met EX-DEC 1705 | -9/Exiles | Learned location of Zion (-6) 1707 | -9/Exiles | Build established: Scout 1716 | -9/Exiles | Met EX-BIN 1724 | -9/Exiles | Aligned with FarCom system 1724 | -9/Exiles | Given EX-Vault access code 1737 | -9/Exiles | Opened EX-Vault 1741 | -9/Exiles | Found PSU Rigger 1757 | -9/Exiles | Warned to stay clear of 0b10 Research branches 1788 | -9/Exiles | Discovered new exit (range 14) 1795 | -9/Exiles | Left Exiles lab with PSU Rigger 1795 | -9/Exiles | Entered Mines 1795 | -8/Mines | Accompanied by 1 ally 1797 | -8/Mines | Reached level 7 1800 | -8/Mines | Discovered exit to Materials (range 67) 1854 | -8/Mines | Discovered exit to Materials (range 34) 2020 | -8/Mines | Entered Materials 2022 | -8/Materials | Reached level 8 2029 | -8/Materials | Identified exit to Factory 2034 | -8/Materials | Upgraded with Utility slot (x2) 2107 | -8/Materials | Reached level 9 2344 | -8/Materials | Build established: Hacker-Scout 2399 | -8/Materials | Reached level 10 2419 | -8/Materials | Upgraded with Utility slot (x1) 2512 | -8/Materials | Identified exit to Garrison 2550 | -8/Materials | Entered Garrison 2550 | -8/Garrison | Accompanied by 2 allies 2552 | -8/Garrison | Reached level 11 2581 | -8/Garrison | Triggered checkpoint 2618 | -8/Garrison | Triggered checkpoint 2644 | -8/Garrison | Discovered new exit (range 12) 2701 | -8/Garrison | Triggered checkpoint 2723 | -8/Garrison | Discovered new exit (range 13) 2729 | -8/Garrison | Identified exit to Materials 2805 | -8/Garrison | Discovered exit to Materials (range 11) 2812 | -8/Garrison | Installed Relay Interface Framework 2870 | -8/Garrison | Triggered checkpoint 2873 | -8/Garrison | Reached level 12 2898 | -8/Garrison | Triggered checkpoint 2912 | -8/Garrison | Garrison Relay disabled 2915 | -8/Garrison | Upgraded with Utility slot (x1) 2924 | -8/Garrison | Triggered checkpoint 3016 | -8/Garrison | Entered Materials 3256 | -8/Materials | Garrison activated, responded to threat 3356 | -8/Materials | Discovered exit to Factory (range 13) 3376 | -8/Materials | Identified exit to Garrison 3511 | -8/Materials | Discovered exit to Factory (range 9) 3699 | -8/Materials | Reached level 13 3890 | -8/Materials | Entered Garrison 3890 | -8/Garrison | Accompanied by 1 ally 3908 | -8/Garrison | Triggered checkpoint 3908 | -8/Garrison | Triggered checkpoint 3954 | -8/Garrison | Destroyed 10 combat bots 3978 | -8/Garrison | Discovered exit to Factory (range 14) 3987 | -8/Garrison | Expanded RIF knowledge: Patrol Navigation 4000 | -8/Garrison | Triggered checkpoint 4045 | -8/Garrison | Garrison Relay disabled 4110 | -8/Garrison | Triggered checkpoint 4181 | -8/Garrison | Discovered exit to Factory (range 9) 4196 | -8/Garrison | Garrison Relay disabled 4202 | -8/Garrison | Triggered checkpoint 4214 | -8/Garrison | Entered Factory 4216 | -7/Factory | Reached level 14 4489 | -7/Factory | Discovered new exit (range 6) 4563 | -7/Factory | Discovered new exit (range 17) 4593 | -7/Factory | Discovered new exit (range 17) 4651 | -7/Factory | Fabricated Enh. Autogun (x1) 4685 | -7/Factory | Fabricated Enh. Autogun (x1) 4717 | -7/Factory | Fabricated Enh. Autogun (x1) 4747 | -7/Factory | Reached level 15 4753 | -7/Factory | Upgraded with Weapon slot (x1) 4795 | -7/Factory | Fabricated Enh. Autogun (x1) 4855 | -7/Factory | Identified exit to Garrison 4858 | -7/Factory | Central database locked down 4863 | -7/Factory | Identified exit to Lower Caves 4975 | -7/Factory | Entered Lower Caves 4975 | -7/Lower Caves | Accompanied by 1 ally 4981 | -7/Lower Caves | Adv. EMP Blaster stolen by Master Thief 4982 | -7/Lower Caves | Enh. Autogun stolen by Master Thief 4989 | -7/Lower Caves | Enh. Autogun stolen by Master Thief 5309 | -7/Lower Caves | Discovered new exit (range 10) 5373 | -7/Lower Caves | Entered another Lower Caves area 5374 | -7/Lower Caves | Discovered new exit (range 7) 5384 | -7/Lower Caves | Learned 4 Factory zone layouts 5433 | -7/Lower Caves | Encountered a Warlord checkpoint 5439 | -7/Lower Caves | Attracted the attention of an 0b10 checkpoint 5706 | -7/Lower Caves | Discovered new exit (range 11) 5728 | -7/Lower Caves | Entered Data Miner 5728 | -7/Data Miner | Discovered new exit (range 7) 5730 | -7/Data Miner | Reached level 16 5738 | -7/Data Miner | Met Data Miner 5749 | -7/Data Miner | Learned location of Section 7 (-2) 5749 | -7/Data Miner | Acquired the access code to Warlord's prototype stash 5758 | -7/Data Miner | Received God Mode back door access code from Data Miner 5786 | -7/Data Miner | Data Conduit disabled 5830 | -7/Data Miner | Entered Proximity Caves 5854 | -6/Proximity Caves | Build established: Hacker-Gunner 5918 | -6/Proximity Caves | Acquired the password to a Derelict Tinkerer's latest research 5921 | -6/Proximity Caves | Found Prototype Special Weapon 5955 | -6/Proximity Caves | Reached level 17 5961 | -6/Proximity Caves | Upgraded with Power slot (x1) 6091 | -6/Proximity Caves | Discovered new exit (range 9) 6118 | -6/Proximity Caves | Entered Factory 6120 | -6/Factory | Reached level 18 6149 | -6/Factory | Identified Molecular Deconstructor 6187 | -6/Factory | Discovered new exit (range 19) 6358 | -6/Factory | Discovered new exit (range 18) 6421 | -6/Factory | Build established: Hacker-Scout 6447 | -6/Factory | Spotted B-75 Beast 6468 | -6/Factory | First assault squad dispatched 6690 | -6/Factory | Reached level 19 6735 | -6/Factory | Identified exit to Garrison 6744 | -6/Factory | Entered Garrison 6744 | -6/Garrison | Accompanied by 1 ally 6758 | -6/Garrison | Triggered checkpoint 6770 | -6/Garrison | Garrison Relay disabled 6829 | -6/Garrison | Triggered checkpoint 6848 | -6/Garrison | Spotted B-75 Beast 6848 | -6/Garrison | Triggered checkpoint 6892 | -6/Garrison | Core integrity fell below 50% 6901 | -6/Garrison | Destroyed B-75 Beast 6922 | -6/Garrison | Triggered checkpoint 6946 | -6/Garrison | Core integrity fell below 20% 7148 | -6/Garrison | Discovered new exit (range 13) 7156 | -6/Garrison | Expanded RIF knowledge: Robot Detection 7180 | -6/Garrison | Entered Factory 7195 | -6/Factory | Discovered new exit (range 20) 7228 | -6/Factory | Identified exit to Garrison 7346 | -6/Factory | Discovered new exit (range 6) 7398 | -6/Factory | Fabricated Cloaking Device (x1) 7674 | -6/Factory | Entered Garrison 7702 | -6/Garrison | Build established: Hacker-Ninja 7828 | -6/Garrison | Reached level 20 7844 | -6/Garrison | Triggered checkpoint 7854 | -6/Garrison | Triggered checkpoint 7898 | -6/Garrison | Discovered new exit (range 9) 7995 | -6/Garrison | Discovered new exit (range 13) 8053 | -6/Garrison | Discovered new exit (range 9) 8060 | -6/Garrison | Expanded RIF knowledge: Coupler Efficiency 8066 | -6/Garrison | Entered Factory 8104 | -5/Factory | Reached level 21 8118 | -5/Factory | Discovered new exit (range 16) 8310 | -5/Factory | Fabricated S-27 Virus (x4) 8371 | -5/Factory | Local fabrication network quarantined 8379 | -5/Factory | Fabricated S-27 Virus (x4) 8549 | -5/Factory | Reached level 22 8567 | -5/Factory | Upgraded with Utility slot (x1) 8829 | -5/Factory | Sucked down chute 8829 | -5/Factory | Entered Waste 8834 | -5/Waste | Spotted C-40 Crusher 8844 | -5/Waste | EMP discharged 8855 | -5/Waste | Destroyed C-40 Crusher 8865 | -5/Waste | Spotted C-40 Crusher 8869 | -5/Waste | Spotted C-40 Crusher 8882 | -5/Waste | Destroyed C-40 Crusher 8891 | -5/Waste | Spotted C-40 Crusher 8894 | -5/Waste | Discovered new exit (range 20) 8905 | -5/Waste | Entered Factory 8993 | -5/Factory | Identified exit to Garrison 8997 | -5/Factory | Garrison activated, responded to threat 9091 | -5/Factory | Fabricated Hyp. Coil Gun (x2) 9169 | -5/Factory | Entered Garrison 9186 | -5/Garrison | Triggered checkpoint 9199 | -5/Garrison | Garrison Relay disabled 9265 | -5/Garrison | Build established: Hacker-Assassin 9275 | -5/Garrison | Triggered checkpoint 9278 | -5/Garrison | Triggered checkpoint 9345 | -5/Garrison | Triggered checkpoint 9368 | -5/Garrison | Core integrity fell below 50% 9391 | -5/Garrison | Reached level 23 9392 | -5/Garrison | Core integrity fell below 20% 9508 | -5/Garrison | Discovered new exit (range 19) 9546 | -5/Garrison | Expanded RIF knowledge: Autoassimilate 9572 | -5/Garrison | Triggered checkpoint 9648 | -5/Garrison | Garrison Relay disabled 9690 | -5/Garrison | Entered Factory 9733 | -5/Factory | Discovered new exit (range 15) 9898 | -5/Factory | Identified exit to Garrison 9900 | -5/Factory | Garrison activated, responded to threat 9907 | -5/Factory | Entered Garrison 9907 | -5/Garrison | Accompanied by 2 allies 9912 | -5/Garrison | Expanded RIF knowledge: Structural Interface 9946 | -5/Garrison | Triggered checkpoint 9976 | -5/Garrison | Garrison Relay disabled 10097 | -5/Garrison | Triggered checkpoint 10134 | -5/Garrison | Triggered checkpoint 10172 | -5/Garrison | Triggered checkpoint 10188 | -5/Garrison | Triggered checkpoint 10227 | -5/Garrison | Garrison Relay disabled 10245 | -5/Garrison | Discovered new exit (range 11) 10310 | -5/Garrison | Discovered new exit (range 5) 10314 | -5/Garrison | Entered Factory 10316 | -4/Factory | Reached level 24 10403 | -4/Factory | Discovered new exit (range 6) 10462 | -4/Factory | Spotted B-86 Titan 10512 | -4/Factory | Identified exit to Garrison 10519 | -4/Factory | Build established: Bothacker-Ninja 10522 | -4/Factory | Discovered new exit (range 4) 10527 | -4/Factory | Entered Garrison 10568 | -4/Garrison | Triggered checkpoint 10570 | -4/Garrison | Reached level 25 10614 | -4/Garrison | Garrison Relay disabled 10618 | -4/Garrison | Upgraded with Utility slot (x1) 10646 | -4/Garrison | Triggered checkpoint 10702 | -4/Garrison | Spotted B-86 Titan 10705 | -4/Garrison | Triggered checkpoint 10850 | -4/Garrison | Core integrity fell below 50% 10912 | -4/Garrison | Triggered checkpoint 10924 | -4/Garrison | Build established: Botlord-Ninja 10924 | -4/Garrison | Garrison Relay disabled 10938 | -4/Garrison | Discovered new exit (range 14) 11001 | -4/Garrison | Discovered new exit (range 8) 11007 | -4/Garrison | Expanded RIF knowledge: Autoassimilate 11054 | -4/Garrison | Triggered checkpoint 11059 | -4/Garrison | Garrison Relay disabled 11084 | -4/Garrison | Entered Armory 11195 | -4/Armory | Reached level 26 11526 | -4/Armory | Fabricated H-66 Slayer (x2) 11528 | -4/Armory | Fabricated H-66 Slayer (x2) 11544 | -4/Armory | Fabricated E-15 Imp? 11685 | -4/Armory | Fabricated H-66 Slayer (x2) 11764 | -4/Armory | Fabricated H-66 Slayer? 11781 | -4/Armory | Fabricated E-15 Imp? 11806 | -4/Armory | Reached level 27 11863 | -4/Armory | Energy Cycler disabled 11937 | -4/Armory | Discovered new exit (range 5) 11978 | -4/Armory | Found Gamma Bomb Array 12084 | -4/Armory | First assault squad dispatched 12158 | -4/Armory | Fabricated H-66 Slayer? 12246 | -4/Armory | Fabricated H-66 Slayer? 12268 | -4/Armory | Discovered new exit (range 14) 12278 | -4/Armory | Local fabrication network quarantined 12279 | -4/Armory | Fabricated H-66 Slayer? 12315 | -4/Armory | Discovered new exit (range 4) 12360 | -4/Armory | Assisted by bots powering up and referring to "LRC-V3" 12490 | -4/Armory | High security lockdown imminent 12520 | -4/Armory | Reached level 28 12570 | -4/Armory | High security lockdown engaged 12635 | -4/Armory | Build established: Commander-Ninja 12801 | -4/Armory | P-70 Sage assimilated allied Warden 7b 12804 | -4/Armory | P-70 Sage assimilated allied Assassin 7c 12827 | -4/Armory | Entered Lab 12827 | -4/Lab | Discovered new exit (range 9) 12840 | -4/Lab | Entered Research 12842 | -3/Research | Reached level 29 12971 | -3/Research | Found Enh. Force Lance 13017 | -3/Research | Garrison activated, responded to threat 13078 | -3/Research | Spotted B-86 Titan 13092 | -3/Research | Identified exit to Garrison 13092 | -3/Research | Allies destroyed B-86 Titan 13288 | -3/Research | Core integrity fell below 50% 13331 | -3/Research | Spotted B-86 Titan 13438 | -3/Research | Garrison activated, responded to threat 13467 | -3/Research | Build established: Botlord-Ninja 13472 | -3/Research | Identified exit to Garrison 13653 | -3/Research | Entered Garrison 13653 | -3/Garrison | Accompanied by 3 allies 13653 | -3/Garrison | Reached level 30 13712 | -3/Garrison | Triggered checkpoint 13729 | -3/Garrison | Triggered checkpoint 13828 | -3/Garrison | Spotted B-86 Titan 13868 | -3/Garrison | Core integrity fell below 20% 13889 | -3/Garrison | Destroyed B-86 Titan 13947 | -3/Garrison | Triggered checkpoint 14003 | -3/Garrison | Discovered new exit (range 10) 14004 | -3/Garrison | Build established: Botlord-Scout 14011 | -3/Garrison | Expanded RIF knowledge: Alert ID Control 14013 | -3/Garrison | Entered Research 14117 | -3/Research | System corruption reached 10% 14275 | -3/Research | Spotted B-86 Titan 14284 | -3/Research | Identified exit to Garrison 14284 | -3/Research | Entered Garrison 14316 | -3/Garrison | Build established: Botlord-Ninja 14371 | -3/Garrison | Spotted B-86 Titan 14465 | -3/Garrison | Spotted B-86 Titan 14468 | -3/Garrison | Triggered checkpoint 14468 | -3/Garrison | Triggered checkpoint 14474 | -3/Garrison | Triggered checkpoint 14537 | -3/Garrison | Destroyed B-86 Titan 14557 | -3/Garrison | Triggered checkpoint 14603 | -3/Garrison | Discovered new exit (range 18) 14673 | -3/Garrison | Discovered new exit (range 10) 14686 | -3/Garrison | Build established: Botlord-Scout 14689 | -3/Garrison | Expanded RIF knowledge: Program Shield 14699 | -3/Garrison | Entered Research 14699 | -2/Research | Accompanied by 4 allies 14701 | -2/Research | Reached level 31 14772 | -2/Research | Identified exit to Access 15094 | -2/Research | Identified exit to Garrison 15102 | -2/Research | Fabricated S-27 Virus? 15105 | -2/Research | Garrison activated, responded to threat 15121 | -2/Research | Entered Garrison 15121 | -2/Garrison | Accompanied by 4 allies 15140 | -2/Garrison | Build established: Botlord-Ninja 15334 | -2/Garrison | Triggered checkpoint 15342 | -2/Garrison | Triggered checkpoint 15374 | -2/Garrison | Triggered checkpoint 15493 | -2/Garrison | Triggered checkpoint 15498 | -2/Garrison | Triggered checkpoint 15512 | -2/Garrison | Triggered checkpoint 15525 | -2/Garrison | Reached level 32 15530 | -2/Garrison | Spotted B-90 Cyclops 15679 | -2/Garrison | Discovered exit to Access (range 12) 15687 | -2/Garrison | Expanded RIF knowledge: Autooverride 15708 | -2/Garrison | Triggered checkpoint 15804 | -2/Garrison | Garrison Relay disabled 15836 | -2/Garrison | Entered Access 15838 | -1/Access | Reached level 33 15929 | -1/Access | Fabricated S-27 Virus? 15986 | -1/Access | Garrison activated, responded to threat 16134 | -1/Access | Local fabrication network quarantined 16187 | -1/Access | Spotted B-99 Colossus 16235 | -1/Access | Build established: Botlord-Gunner 16286 | -1/Access | Garrison activated, responded to threat 16336 | -1/Access | First assault squad dispatched 16340 | -1/Access | Reached level 34 16538 | -1/Access | Garrison activated, responded to threat 16733 | -1/Access | Garrison activated, responded to threat 16745 | -1/Access | Discovered new exit (range 5) 16795 | -1/Access | P-80 Master assimilated hostile G-73 Enforcer 16803 | -1/Access | Reached level 35 17175 | -1/Access | Spotted B-99 Colossus 17176 | -1/Access | Spotted B-99 Colossus 17256 | -1/Access | Allies destroyed B-99 Colossus 17292 | -1/Access | Allies destroyed B-99 Colossus 17297 | -1/Access | Found Prototype Ballistic Gun 17297 | -1/Access | Identified Multirail 17300 | -1/Access | Found Multirail 17723 | -1/Access | Reached level 36 17723 | -1/Access | High security lockdown imminent 17803 | -1/Access | High security lockdown engaged 18007 | -1/Access | Spotted Striker 18030 | -1/Access | Destroyed Striker 18098 | -1/Access | Spotted Striker 18103 | -1/Access | Destroyed 11 combat bots 18118 | -1/Access | Spotted Striker 18125 | -1/Access | Destroyed Striker 18140 | -1/Access | Destroyed Striker 18141 | -1/Access | Spotted Striker 18144 | -1/Access | Destroyed Striker 18154 | -1/Access | Spotted Investigator 18163 | -1/Access | Destroyed Investigator 18188 | -1/Access | Destroyed 12 combat bots 18227 | -1/Access | Spotted Striker 18227 | -1/Access | Spotted Striker 18266 | -1/Access | Destroyed Striker 18266 | -1/Access | Destroyed Striker 18271 | -1/Access | Core integrity fell below 50% 18362 | -1/Access | Destroyed 20 combat bots 18399 | -1/Access | Spotted Striker 18400 | -1/Access | Spotted Executioner 18401 | -1/Access | Spotted Executioner 18402 | -1/Access | Destroyed Executioner 18406 | -1/Access | Destroyed Executioner 18442 | -1/Access | Destroyed 10 combat bots 18444 | -1/Access | Spotted Striker 18446 | -1/Access | Spotted Executioner 18454 | -1/Access | Reached level 37 18454 | -1/Access | Destroyed Striker 18462 | -1/Access | Spotted Executioner 18479 | -1/Access | Destroyed Executioner 18480 | -1/Access | Spotted Striker 18481 | -1/Access | Spotted Executioner 18502 | -1/Access | Destroyed Executioner 18509 | -1/Access | Destroyed Striker 18525 | -1/Access | Destroyed Executioner 18550 | -1/Access | Destroyed 17 combat bots 18662 | -1/Access | Spotted Striker 18662 | -1/Access | Spotted Executioner 18670 | -1/Access | System corruption reached 10% 18681 | -1/Access | Allies destroyed Striker 18682 | -1/Access | Spotted Striker 18682 | -1/Access | Spotted Executioner 18685 | -1/Access | Spotted Executioner 18707 | -1/Access | Spotted Striker 18709 | -1/Access | Spotted Striker 18716 | -1/Access | Spotted Striker 18716 | -1/Access | Spotted Striker 18722 | -1/Access | Destroyed Striker 18734 | -1/Access | Destroyed Striker 18737 | -1/Access | Spotted Executioner 18738 | -1/Access | Destroyed Striker 18759 | -1/Access | Destroyed 10 combat bots 18768 | -1/Access | Destroyed Striker 18776 | -1/Access | Core integrity fell below 20% 18777 | *** | Escaped! Last Messages --------------- 18768_ Switching to secondary target: Striker. 18768_ Slug penetrates Striker. 18768_ Slug penetrates Wall. 18772_ System corrupted: Hyp. Railgun jammed. 18772_ HV Slug penetrates Striker. 18772_ L-61 Swordsman suffers critical hit. 18772_ Destroyed Flexi-carbon Leg. 18772_ HV Slug penetrates Striker. 18772_ Striker suffers critical hit. 18772_ Destroyed Lgt. Quantum Reactor. 18772_ HV Slug penetrates Wall. 18772_ Slug penetrates Striker. 18772_ System corrupted: Multirail targeting data glitched. 18772_ Slug penetrates Striker. 18772_ Slug penetrates Terminal. 18777_ Penetrated by Slug. 18777_ Striker destroyed. 18777_ Slug penetrates Reinforced Barrier. 18777_ Slug penetrates L-61 Swordsman. 18777_ Slug penetrates Sealed Heavy Doors. Map ----- +----------------------------------------------------+ | ?# !#=*# = ????????????????????????? | | ?# !!#=!#""""" ""??????????????????????? | | ?##########%!#""""" S??????????????????????? | | ##########%=%#""""" ""#?????????????????????? | | """ [=%[#=%#""""" ""#?????????????????????? | | T"" !%===#*!#""""" ""#?????????????????????? | | %=!=#=!%!%[! #?????????????????????? | | !/*=/%!"==!%! #?????????????????????? | | !%![#!=###############?????????????????????? | | [!=%"==#![![ #?????????????????????????? | | ###########g*#/!=!* #?????????????????????????? | | =%%!=*g*#%!""""" #?????????????????????????? | | *%!*=!*!/!*"" "" #?????????????????????????? | | ###########==#|! #?????????????????????????? | | ??????????#g=#==== #?????????????????????????? | | ??????????#h|#*! #?????????????????????????? | | ??????????#!!#= #?????????????????????????? | | ??????????#g!"##########?????????????????????????? | | ??????????#lg"#????###???????????????????????????? | | ??????????# b;###### ##########?##########???????? | | ??????????# ""T""" "?" !!! ! #???????? | | ??????????# g""" " =g! "?"=! !!] ##?###### | | ??????????# EE= !%= "?" !!!!= "### | | ??????????# !! E l=l "?" !=* | | ??????????# ! "" "?"" | | ??????????# m @" "??" *!! | | ??????????# "??"!!!!! [ = | | ??????????# "??"!!%!= " # ! | | ??????????# % "??"!][!* # * | | ??????????# "??" [] ## | | ??????????#% ####### ##########??########### ! | | ??????????# #?????###????????????????????# | | ??????????# ##############???????????????## | | ??????????# #=! #????????????????# | | ??????????# %# ! #????????????######/#### | | ??????????# %+ % "" "" #????????????# | | ??????????# #%[!!= " " #?????######## | | ??????????# #!==! %" " #?????# # %= | | ??????????# #%[! [ #?????# # = | | ??????????# #![ / ! #?????# # | | ??????????# #! !=#?????# | | ??????????# # !%%#?????#= ! | | ??????????#% # !==[#######[! =!==! | | ??######## # !*=[+%*!%%+%=%[!%#! | | ??# # !*#######=! =%[#!* | | ?# #######+########???#! %+ | | ?# ########?????# ## ###?# # | | # #????????#####/==* # ### #+###### ## | | # #????????# [%[%[*! ## # # #? | | + #????????# = !!!=* !! ## # ### ####? | +----------------------------------------------------+ Best States ------------- Heat Dissipation 74 Energy Generation 30 Energy Capacity 290 Matter Stores 800 Matter Capacity 800 Sight Range 21 Terrain Scan Range 20 Terrain Scan Density 610 Cloak Strength 3 Resistance: KI 15 Resistance: TH 15 Weapon Cycling 15 Phase Shifting 15 Evasion (%) 92 Core Analysis 8 Recoil Reduction 6 Kinecelleration 30 Offensive Hacking 58 Defensive Hacking 15 Item Schematics ----------------- Hacking Suite | -8/Materials | Hacked Prc. Beam Rifle | -7/Factory | Hacked Enh. Autogun | -7/Factory | Scanalyzed Combat Drone Bay | -7/Data Miner | Free Lgt. Regenerative Plating | -7/Data Miner | Free Cmb. Gravmag System | -7/Data Miner | Free Exp. Cesium-ion Thruster | -7/Data Miner | Free Exp. Terrain Scan Processor | -7/Data Miner | Free Cloaking Device | -7/Data Miner | Free Hyp. Coil Gun | -5/Factory | Scanalyzed Robot Schematics ------------------ S-27 Virus | -7/Data Miner | Free G-50 Soldier | -7/Data Miner | Free L-41 Fighter | -7/Data Miner | Free H-66 Slayer | -7/Data Miner | Free I-36 Angel | -7/Data Miner | Free Fabricated ------------ Enh. Autogun | x1 | -7/Factory Enh. Autogun | x1 | -7/Factory Enh. Autogun | x1 | -7/Factory Enh. Autogun | x1 | -7/Factory Cloaking Device | x1 | -6/Factory S-27 Virus | x4 | -5/Factory S-27 Virus | x4 | -5/Factory Hyp. Coil Gun | x2 | -5/Factory H-66 Slayer | x2 | -4/Armory H-66 Slayer | x2 | -4/Armory E-15 Imp | x2 | -4/Armory | Preloaded H-66 Slayer | x2 | -4/Armory H-66 Slayer | x2 | -4/Armory E-15 Imp | x2 | -4/Armory | Preloaded H-66 Slayer | x2 | -4/Armory H-66 Slayer | x2 | -4/Armory H-66 Slayer | x2 | -4/Armory S-27 Virus | x4 | -2/Research S-27 Virus | x4 | -1/Access Alien Tech Used ----------------- None Achievements -------------- None Challenges ------------ None RPGLIKE | -11 -10 -10 -9 -9 -9 -8 -8 -8 -8 -8 -7 -7 -7 -7 -6 -6 -6 -6 -6 -5 -5 -5 -5 -5 -5 -4 -4 -4 -4 -3 -3 -3 -3 -2 -2 -1 --------- Run | Scr Mat Min Mat Min Exi Min Mat Gar Mat Gar Fac Low Low Dat Pro Fac Gar Fac Gar Fac Was Fac Gar Fac Gar Fac Gar Arm Lab Res Gar Res Gar Res Gar Acc Levels Raised 36 | . 1 1 3 . . 1 3 2 1 . 2 . . 1 1 2 . . 1 2 . . 1 . . 1 1 3 . 1 1 . . 1 1 5 XP Earned 57562 | 3000 1820 1274 4693 500 350 1350 4605 2145 1409 953 2064 700 508 294 2245 2181 979 251 393 3265 67 140 1087 201 668 1409 1267 4749 352 1579 369 209 209 1329 1296 7652 XP Spent 56980 | 2870 120 . 6905 . . . 6250 2000 2250 . 3355 . . . 2900 1500 60 700 . 3900 . . . . 2700 . 2600 4250 . 2400 960 260 . 1200 . 9800 Upgrades 102 | 12 2 . 17 . . . 7 1 2 . 8 . . . 4 1 2 1 . 3 . . . . 3 . 1 5 . 2 10 2 . 2 . 17 Power Slot 1 | . . . . . . . . . . . . . . . 1 . . . . . . . . . . . . . . . . . . . . . Utility Slot 8 | . . . 2 . . . 3 1 . . . . . . . . . . . 1 . . . . . . 1 . . . . . . . . . Weapon Slot 4 | 1 . . 2 . . . . . . . 1 . . . . . . . . . . . . . . . . . . . . . . . . . Core Integrity 17 | . . . . . . . . . . . . . . . . . 2 . . . . . . . . . . . . . 8 2 . . . 5 Heat Dissipation 7 | . 2 . . . . . . . . . 3 . . . . . . . . . . . . . . . . . . . 2 . . . . . Matter Storage 10 | . . . 2 . . . . . . . 2 . . . . . . . . . . . . . . . . . . . . . . . . 6 Mass Support 12 | 1 . . 3 . . . 2 . . . . . . . 3 . . . . . . . . . 1 . . 1 . 1 . . . . . . Inventory Capacity 7 | 1 . . 1 . . . 1 . 2 . . . . . . 1 . . . . . . . . . . . 1 . . . . . . . . Sight Range 5 | . . . . . . . . . . . . . . . . . . . . . . . . . . . . 2 . . . . . 2 . 1 Terrain Scan Density 6 | 4 . . 2 . . . . . . . . . . . . . . . . . . . . . . . . . . . . . . . . . Ranged Accuracy 6 | 2 . . 1 . . . . . . . . . . . . . . 1 . . . . . . 2 . . . . . . . . . . . Hack Attack % 9 | 2 . . . . . . . . . . 1 . . . . . . . . 1 . . . . . . . 1 . 1 . . . . . 3 Hack Defense % 3 | 1 . . . . . . . . . . 1 . . . . . . . . 1 . . . . . . . . . . . . . . . . KI Resistance % 3 | . . . 2 . . . . . . . . . . . . . . . . . . . . . . . . . . . . . . . . 1 TH Resistance % 3 | . . . 2 . . . . . . . . . . . . . . . . . . . . . . . . . . . . . . . . 1 KI Damage % 1 | . . . . . . . 1 . . . . . . . . . . . . . . . . . . . . . . . . . . . . . Protomatter Created 9872 | . 217 12 403 . . 97 450 111 374 170 62 67 116 . 152 339 141 72 181 338 96 61 259 79 339 106 318 1184 . 448 10 149 175 61 835 2450 Integrity Restored 18630 | . 441 120 624 . . 103 458 96 753 261 84 126 384 . 426 345 174 216 339 672 58 179 453 447 495 308 802 1357 . 1809 96 1137 972 411 1058 3426 Core 15528 | . 371 114 494 . . 87 381 74 614 207 52 126 301 . 383 345 174 216 339 314 58 166 453 447 435 85 639 1181 . 1441 96 1137 590 376 826 3006 Parts 3102 | . 70 6 130 . . 16 77 22 139 54 32 . 83 . 43 . . . . 358 . 13 . . 60 223 163 176 . 368 . . 382 35 232 420 Protomatter Decayed 8658 | . 39 11 89 . . 79 220 176 170 62 57 . . . 46 147 98 . 68 280 . 59 111 . 150 . 20 2003 . 276 96 132 298 138 1155 2678 Game ------ Seed CouplerGyrokineticPod Manual? 0 Play Time 04:29:29 Cumulative 447.9 hours Start 2019.12.25 @ 14:47:05 End 2019.12.25 @ 19:46:05 Sessions 1 Manual Loads 0 Difficulty Rogue Special Mode Winter2019/RPGLIKE Game No. 336 Rogue 332 Adventurer 4 Explorer 0 Win Type 0 Total 42 Types 34/3/1/2/2/0/0 Lore% 93 Gallery% 94 Achievement% 91 Wizard Run 0 Options --------- ASCII 0 Keyboard 0 Movement Vi Keybinds 0 Fullscreen 0 Font 16/Terminus Map View 76x50 Tactical HUD 1 Map Filters NONE Filters NONE Steam 1 RUN: fb2114ad-64b2-4d53-a287-11ca8042602d